{"text_format":"1","workbook":"xlsx","n_sheets":2,"sheets":["Mitarbeiter","13"],"not_rendered":{"charts":0,"images":2,"macros":1,"external_links":0,"defined_names":1,"comments":0,"pivot_tables":0},"unopened":[],"bounds":{"document_bytes":16777216,"sheet_cells":100000,"rows_first":2000,"rows_last":500,"rows_between":2000,"halvings":0,"cell_chars":16384,"cell_head_chars":4096},"cells_cut":0,"cells_raw":0,"read":"whole","date_system":"1900"}

{"sheet":"Mitarbeiter","index":0,"n_rows":32,"n_cols":17,"rows_kept":32,"cut":false,"hidden":false,"merged":[[35,1,35,7],[30,1,31,5],[35,13,37,16]]}
[]
[null,"Grunddaten",null,null,null,null,"Aufgaben"]
[null,"Name","Vorname","Rufname","User1","User2","Aufgabe","Aufgabe2","Aufgabe3","Aufgabe4","Aufgabe5","Aufgabe6","Aufgabe7","Aufgabe8","Aufgabe9","Aufgabe10","Aufgabe11"]
[null,"A",1,{"$f":"_xlfn.TEXTJOIN(\"\",,Tabelle2[[#This Row],[Name]:[Vorname]])","v":"A1"}]
[null,"B",2,{"$f":"_xlfn.TEXTJOIN(\"\",,Tabelle2[[#This Row],[Name]:[Vorname]])","v":"B2"}]
[null,"C",3,{"$f":"_xlfn.TEXTJOIN(\"\",,Tabelle2[[#This Row],[Name]:[Vorname]])","v":"C3"}]
[null,"D",4,{"$f":"_xlfn.TEXTJOIN(\"\",,Tabelle2[[#This Row],[Name]:[Vorname]])","v":"D4"}]
[null,"E",5,{"$f":"_xlfn.TEXTJOIN(\"\",,Tabelle2[[#This Row],[Name]:[Vorname]])","v":"E5"}]
[null,"F",6,{"$f":"_xlfn.TEXTJOIN(\"\",,Tabelle2[[#This Row],[Name]:[Vorname]])","v":"F6"}]
[null,"G",7,{"$f":"_xlfn.TEXTJOIN(\"\",,Tabelle2[[#This Row],[Name]:[Vorname]])","v":"G7"}]
[null,"H",8,{"$f":"_xlfn.TEXTJOIN(\"\",,Tabelle2[[#This Row],[Name]:[Vorname]])","v":"H8"}]
[null,"I",9,{"$f":"_xlfn.TEXTJOIN(\"\",,Tabelle2[[#This Row],[Name]:[Vorname]])","v":"I9"}]
[null,"J",10,{"$f":"_xlfn.TEXTJOIN(\"\",,Tabelle2[[#This Row],[Name]:[Vorname]])","v":"J10"}]
[null,"K",11,{"$f":"_xlfn.TEXTJOIN(\"\",,Tabelle2[[#This Row],[Name]:[Vorname]])","v":"K11"}]
[null,"L",12,{"$f":"_xlfn.TEXTJOIN(\"\",,Tabelle2[[#This Row],[Name]:[Vorname]])","v":"L12"}]
[null,"M",13,{"$f":"_xlfn.TEXTJOIN(\"\",,Tabelle2[[#This Row],[Name]:[Vorname]])","v":"M13"}]
[null,"N",14,{"$f":"_xlfn.TEXTJOIN(\"\",,Tabelle2[[#This Row],[Name]:[Vorname]])","v":"N14"}]
[null,"O",15,{"$f":"_xlfn.TEXTJOIN(\"\",,Tabelle2[[#This Row],[Name]:[Vorname]])","v":"O15"}]
[null,"P",16,{"$f":"_xlfn.TEXTJOIN(\"\",,Tabelle2[[#This Row],[Name]:[Vorname]])","v":"P16"}]
[null,"Q",17,{"$f":"_xlfn.TEXTJOIN(\"\",,Tabelle2[[#This Row],[Name]:[Vorname]])","v":"Q17"}]
[null,"R",18,{"$f":"_xlfn.TEXTJOIN(\"\",,Tabelle2[[#This Row],[Name]:[Vorname]])","v":"R18"}]
[null,"S",19,{"$f":"_xlfn.TEXTJOIN(\"\",,Tabelle2[[#This Row],[Name]:[Vorname]])","v":"S19"}]
[null,"T",20,{"$f":"_xlfn.TEXTJOIN(\"\",,Tabelle2[[#This Row],[Name]:[Vorname]])","v":"T20"}]
[null,"U",21,{"$f":"_xlfn.TEXTJOIN(\"\",,Tabelle2[[#This Row],[Name]:[Vorname]])","v":"U21"}]
[null,"V",22,{"$f":"_xlfn.TEXTJOIN(\"\",,Tabelle2[[#This Row],[Name]:[Vorname]])","v":"V22"}]
[null,"W",23,{"$f":"_xlfn.TEXTJOIN(\"\",,Tabelle2[[#This Row],[Name]:[Vorname]])","v":"W23"}]
[null,"X",24,{"$f":"_xlfn.TEXTJOIN(\"\",,Tabelle2[[#This Row],[Name]:[Vorname]])","v":"X24"}]
[null,"Y",25,{"$f":"_xlfn.TEXTJOIN(\"\",,Tabelle2[[#This Row],[Name]:[Vorname]])","v":"Y25"}]
[]
[]
[null,"Summe",null,null,null,null,{"$f":"Tabelle2[[#Headers],[Aufgabe]]","v":"Aufgabe"},{"$f":"Tabelle2[[#Headers],[Aufgabe2]]","v":"Aufgabe2"},{"$f":"Tabelle2[[#Headers],[Aufgabe3]]","v":"Aufgabe3"},{"$f":"Tabelle2[[#Headers],[Aufgabe4]]","v":"Aufgabe4"},{"$f":"Tabelle2[[#Headers],[Aufgabe5]]","v":"Aufgabe5"},{"$f":"Tabelle2[[#Headers],[Aufgabe6]]","v":"Aufgabe6"},{"$f":"Tabelle2[[#Headers],[Aufgabe7]]","v":"Aufgabe7"},{"$f":"Tabelle2[[#Headers],[Aufgabe8]]","v":"Aufgabe8"},{"$f":"Tabelle2[[#Headers],[Aufgabe9]]","v":"Aufgabe9"},{"$f":"Tabelle2[[#Headers],[Aufgabe10]]","v":"Aufgabe10"},{"$f":"Tabelle2[[#Headers],[Aufgabe11]]","v":"Aufgabe11"}]
[null,null,null,null,null,null,{"$f":"SUM(Tabelle2[Aufgabe])","v":0},{"$f":"SUM(Tabelle2[Aufgabe2])","v":0},{"$f":"SUM(Tabelle2[Aufgabe3])","v":0},{"$f":"SUM(Tabelle2[Aufgabe4])","v":0},{"$f":"SUM(Tabelle2[Aufgabe5])","v":0},{"$f":"SUM(Tabelle2[Aufgabe6])","v":0},{"$f":"SUM(Tabelle2[Aufgabe7])","v":0},{"$f":"SUM(Tabelle2[Aufgabe8])","v":0},{"$f":"SUM(Tabelle2[Aufgabe9])","v":0},{"$f":"SUM(Tabelle2[Aufgabe10])","v":0},{"$f":"SUM(Tabelle2[Aufgabe11])","v":0}]

{"sheet":"13","index":1,"n_rows":43,"n_cols":78,"rows_kept":43,"cut":false,"hidden":false,"merged":[[33,55,33,65],[34,55,42,65],[33,67,33,77],[34,67,42,77],[32,4,42,4],[34,29,42,32],[33,36,33,39],[34,36,42,39],[33,43,33,46],[34,43,42,46],[33,50,33,53],[34,50,42,53],[33,8,33,11],[34,8,42,11],[33,15,33,18],[34,15,42,18],[33,22,33,25],[34,22,42,25],[33,29,33,32]]}
[]
[null,null,null,null,null,null,"Montag",{"$f":"DATE(C5,1,1)+(C4-1)*7+1-WEEKDAY(DATE(C5,1,1)-1)","v":"2025-03-24"},null,null,null,null,null,"Dienstag",{"$f":"H2+1","v":"2025-03-25"},null,null,null,null,null,"Mittwoch",{"$f":"H2+2","v":"2025-03-26"},null,null,null,null,null,"Donnerstag",{"$f":"H2+3","v":"2025-03-27"},null,null,null,null,null,"Freitag",{"$f":"H2+4","v":"2025-03-28"},null,null,null,null,null,"Samstag",{"$f":"H2+5","v":"2025-03-29"},null,null,null,null,null,"Sonntag",{"$f":"H2+6","v":"2025-03-30"},null,null,null,null,null,"Woche",null,null,null,null,null,null,null,null,null,null,null,"Gesamt"]
[null,null,null,null,"Mitarbeiter",null,"Schicht","Wechsel?","Aufgabe 1","Detail 1","Aufgabe 2","Detail 2",null,"Schicht","Wechsel?","Aufgabe 1","Detail 1","Aufgabe 2","Detail 2",null,"Schicht","Wechsel?","Aufgabe 1","Detail 1","Aufgabe 2","Detail 2",null,"Schicht","Wechsel?","Aufgabe 1","Detail 1","Aufgabe 2","Detail 2",null,"Schicht","Wechsel?","Aufgabe 1","Detail 1","Aufgabe 2","Detail 2",null,"Schicht","Wechsel?","Aufgabe 1","Detail 1","Aufgabe 2","Detail 2",null,"Schicht","Wechsel?","Aufgabe 1","Detail 1","Aufgabe 2","Detail 2",null,{"$f":"Tabelle2[[#Headers],[Aufgabe]:[Aufgabe11]]","v":"Aufgabe"},"Aufgabe2","Aufgabe3","Aufgabe4","Aufgabe5","Aufgabe6","Aufgabe7","Aufgabe8","Aufgabe9","Aufgabe10","Aufgabe11",null,{"$f":"Tabelle2[[#Headers],[Aufgabe]:[Aufgabe11]]","v":"Aufgabe"},"Aufgabe2","Aufgabe3","Aufgabe4","Aufgabe5","Aufgabe6","Aufgabe7","Aufgabe8","Aufgabe9","Aufgabe10","Aufgabe11"]
[null,"Kalenderwoche ",{"$f":"RIGHT(CELL(\"dateiname\",A1),LEN(CELL(\"dateiname\",A1))-FIND(\"]\",CELL(\"dateiname\",A1)))","v":"13"},null,"A1",null,null,null,null,null,null,null,null,null,null,null,null,null,null,null,null,null,null,null,null,null,null,null,null,null,null,null,null,null,null,null,null,null,null,null,null,null,null,null,null,null,null,null,null,null,null,null,null,null,null,{"$f":"IF($E4=\"\",\"\",COUNTIF($E4:$BB4,BD$3))","v":0},{"$f":"IF($E4=\"\",\"\",COUNTIF($E4:$BB4,BE$3))","v":0},0,0,0,0,0,0,0,0,0,null,{"$f":"IF(ISNA(_xlfn.XLOOKUP($E4,Tabelle2[Rufname],Tabelle2[Aufgabe])),\"\",_xlfn.XLOOKUP($E4,Tabelle2[Rufname],Tabelle2[Aufgabe]))","v":0},{"$f":"IF(ISNA(_xlfn.XLOOKUP($E4,Tabelle2[Rufname],Tabelle2[Aufgabe2])),\"\",_xlfn.XLOOKUP($E4,Tabelle2[Rufname],Tabelle2[Aufgabe2]))","v":0},{"$f":"IF(ISNA(_xlfn.XLOOKUP($E4,Tabelle2[Rufname],Tabelle2[Aufgabe3])),\"\",_xlfn.XLOOKUP($E4,Tabelle2[Rufname],Tabelle2[Aufgabe3]))","v":0},{"$f":"IF(ISNA(_xlfn.XLOOKUP($E4,Tabelle2[Rufname],Tabelle2[Aufgabe4])),\"\",_xlfn.XLOOKUP($E4,Tabelle2[Rufname],Tabelle2[Aufgabe4]))","v":0},{"$f":"IF(ISNA(_xlfn.XLOOKUP($E4,Tabelle2[Rufname],Tabelle2[Aufgabe5])),\"\",_xlfn.XLOOKUP($E4,Tabelle2[Rufname],Tabelle2[Aufgabe5]))","v":0},{"$f":"IF(ISNA(_xlfn.XLOOKUP($E4,Tabelle2[Rufname],Tabelle2[Aufgabe6])),\"\",_xlfn.XLOOKUP($E4,Tabelle2[Rufname],Tabelle2[Aufgabe6]))","v":0},{"$f":"IF(ISNA(_xlfn.XLOOKUP($E4,Tabelle2[Rufname],Tabelle2[Aufgabe7])),\"\",_xlfn.XLOOKUP($E4,Tabelle2[Rufname],Tabelle2[Aufgabe7]))","v":0},{"$f":"IF(ISNA(_xlfn.XLOOKUP($E4,Tabelle2[Rufname],Tabelle2[Aufgabe8])),\"\",_xlfn.XLOOKUP($E4,Tabelle2[Rufname],Tabelle2[Aufgabe8]))","v":0},{"$f":"IF(ISNA(_xlfn.XLOOKUP($E4,Tabelle2[Rufname],Tabelle2[Aufgabe9])),\"\",_xlfn.XLOOKUP($E4,Tabelle2[Rufname],Tabelle2[Aufgabe9]))","v":0},{"$f":"IF(ISNA(_xlfn.XLOOKUP($E4,Tabelle2[Rufname],Tabelle2[Aufgabe10])),\"\",_xlfn.XLOOKUP($E4,Tabelle2[Rufname],Tabelle2[Aufgabe10]))","v":0},{"$f":"IF(ISNA(_xlfn.XLOOKUP($E4,Tabelle2[Rufname],Tabelle2[Aufgabe11])),\"\",_xlfn.XLOOKUP($E4,Tabelle2[Rufname],Tabelle2[Aufgabe11]))","v":0}]
[null,"Jahr",2025,null,"B2",null,null,null,null,null,null,null,null,null,null,null,null,null,null,null,null,null,null,null,null,null,null,null,null,null,null,null,null,null,null,null,null,null,null,null,null,null,null,null,null,null,null,null,null,null,null,null,null,null,null,{"$f":"IF($E5=\"\",\"\",COUNTIF($E5:$BB5,BD$3))","v":0},0,0,0,0,0,0,0,0,0,0,null,{"$f":"IF(ISNA(_xlfn.XLOOKUP($E5,Tabelle2[Rufname],Tabelle2[Aufgabe])),\"\",_xlfn.XLOOKUP($E5,Tabelle2[Rufname],Tabelle2[Aufgabe]))","v":0},{"$f":"IF(ISNA(_xlfn.XLOOKUP($E5,Tabelle2[Rufname],Tabelle2[Aufgabe2])),\"\",_xlfn.XLOOKUP($E5,Tabelle2[Rufname],Tabelle2[Aufgabe2]))","v":0},{"$f":"IF(ISNA(_xlfn.XLOOKUP($E5,Tabelle2[Rufname],Tabelle2[Aufgabe3])),\"\",_xlfn.XLOOKUP($E5,Tabelle2[Rufname],Tabelle2[Aufgabe3]))","v":0},{"$f":"IF(ISNA(_xlfn.XLOOKUP($E5,Tabelle2[Rufname],Tabelle2[Aufgabe4])),\"\",_xlfn.XLOOKUP($E5,Tabelle2[Rufname],Tabelle2[Aufgabe4]))","v":0},{"$f":"IF(ISNA(_xlfn.XLOOKUP($E5,Tabelle2[Rufname],Tabelle2[Aufgabe5])),\"\",_xlfn.XLOOKUP($E5,Tabelle2[Rufname],Tabelle2[Aufgabe5]))","v":0},{"$f":"IF(ISNA(_xlfn.XLOOKUP($E5,Tabelle2[Rufname],Tabelle2[Aufgabe6])),\"\",_xlfn.XLOOKUP($E5,Tabelle2[Rufname],Tabelle2[Aufgabe6]))","v":0},{"$f":"IF(ISNA(_xlfn.XLOOKUP($E5,Tabelle2[Rufname],Tabelle2[Aufgabe7])),\"\",_xlfn.XLOOKUP($E5,Tabelle2[Rufname],Tabelle2[Aufgabe7]))","v":0},{"$f":"IF(ISNA(_xlfn.XLOOKUP($E5,Tabelle2[Rufname],Tabelle2[Aufgabe8])),\"\",_xlfn.XLOOKUP($E5,Tabelle2[Rufname],Tabelle2[Aufgabe8]))","v":0},{"$f":"IF(ISNA(_xlfn.XLOOKUP($E5,Tabelle2[Rufname],Tabelle2[Aufgabe9])),\"\",_xlfn.XLOOKUP($E5,Tabelle2[Rufname],Tabelle2[Aufgabe9]))","v":0},{"$f":"IF(ISNA(_xlfn.XLOOKUP($E5,Tabelle2[Rufname],Tabelle2[Aufgabe10])),\"\",_xlfn.XLOOKUP($E5,Tabelle2[Rufname],Tabelle2[Aufgabe10]))","v":0},{"$f":"IF(ISNA(_xlfn.XLOOKUP($E5,Tabelle2[Rufname],Tabelle2[Aufgabe11])),\"\",_xlfn.XLOOKUP($E5,Tabelle2[Rufname],Tabelle2[Aufgabe11]))","v":0}]
[null,null,null,null,"C3",null,null,null,"Aufgabe2",null,null,null,null,null,null,null,null,null,null,null,null,null,null,null,null,null,null,null,null,null,null,null,null,null,null,null,null,null,null,null,null,null,null,null,null,null,null,null,null,null,null,null,null,null,null,0,1,0,0,0,0,0,0,0,0,0,null,{"$f":"IF(ISNA(_xlfn.XLOOKUP($E6,Tabelle2[Rufname],Tabelle2[Aufgabe])),\"\",_xlfn.XLOOKUP($E6,Tabelle2[Rufname],Tabelle2[Aufgabe]))","v":0},{"$f":"IF(ISNA(_xlfn.XLOOKUP($E6,Tabelle2[Rufname],Tabelle2[Aufgabe2])),\"\",_xlfn.XLOOKUP($E6,Tabelle2[Rufname],Tabelle2[Aufgabe2]))","v":0},{"$f":"IF(ISNA(_xlfn.XLOOKUP($E6,Tabelle2[Rufname],Tabelle2[Aufgabe3])),\"\",_xlfn.XLOOKUP($E6,Tabelle2[Rufname],Tabelle2[Aufgabe3]))","v":0},{"$f":"IF(ISNA(_xlfn.XLOOKUP($E6,Tabelle2[Rufname],Tabelle2[Aufgabe4])),\"\",_xlfn.XLOOKUP($E6,Tabelle2[Rufname],Tabelle2[Aufgabe4]))","v":0},{"$f":"IF(ISNA(_xlfn.XLOOKUP($E6,Tabelle2[Rufname],Tabelle2[Aufgabe5])),\"\",_xlfn.XLOOKUP($E6,Tabelle2[Rufname],Tabelle2[Aufgabe5]))","v":0},{"$f":"IF(ISNA(_xlfn.XLOOKUP($E6,Tabelle2[Rufname],Tabelle2[Aufgabe6])),\"\",_xlfn.XLOOKUP($E6,Tabelle2[Rufname],Tabelle2[Aufgabe6]))","v":0},{"$f":"IF(ISNA(_xlfn.XLOOKUP($E6,Tabelle2[Rufname],Tabelle2[Aufgabe7])),\"\",_xlfn.XLOOKUP($E6,Tabelle2[Rufname],Tabelle2[Aufgabe7]))","v":0},{"$f":"IF(ISNA(_xlfn.XLOOKUP($E6,Tabelle2[Rufname],Tabelle2[Aufgabe8])),\"\",_xlfn.XLOOKUP($E6,Tabelle2[Rufname],Tabelle2[Aufgabe8]))","v":0},{"$f":"IF(ISNA(_xlfn.XLOOKUP($E6,Tabelle2[Rufname],Tabelle2[Aufgabe9])),\"\",_xlfn.XLOOKUP($E6,Tabelle2[Rufname],Tabelle2[Aufgabe9]))","v":0},{"$f":"IF(ISNA(_xlfn.XLOOKUP($E6,Tabelle2[Rufname],Tabelle2[Aufgabe10])),\"\",_xlfn.XLOOKUP($E6,Tabelle2[Rufname],Tabelle2[Aufgabe10]))","v":0},{"$f":"IF(ISNA(_xlfn.XLOOKUP($E6,Tabelle2[Rufname],Tabelle2[Aufgabe11])),\"\",_xlfn.XLOOKUP($E6,Tabelle2[Rufname],Tabelle2[Aufgabe11]))","v":0}]
[null,null,null,null,"D4",null,null,null,null,null,null,null,null,null,null,null,null,null,null,null,null,null,null,null,null,null,null,null,null,null,null,null,null,null,null,null,null,null,null,null,null,null,null,null,null,null,null,null,null,null,null,null,null,null,null,0,0,0,0,0,0,0,0,0,0,0,null,{"$f":"IF(ISNA(_xlfn.XLOOKUP($E7,Tabelle2[Rufname],Tabelle2[Aufgabe])),\"\",_xlfn.XLOOKUP($E7,Tabelle2[Rufname],Tabelle2[Aufgabe]))","v":0},{"$f":"IF(ISNA(_xlfn.XLOOKUP($E7,Tabelle2[Rufname],Tabelle2[Aufgabe2])),\"\",_xlfn.XLOOKUP($E7,Tabelle2[Rufname],Tabelle2[Aufgabe2]))","v":0},{"$f":"IF(ISNA(_xlfn.XLOOKUP($E7,Tabelle2[Rufname],Tabelle2[Aufgabe3])),\"\",_xlfn.XLOOKUP($E7,Tabelle2[Rufname],Tabelle2[Aufgabe3]))","v":0},{"$f":"IF(ISNA(_xlfn.XLOOKUP($E7,Tabelle2[Rufname],Tabelle2[Aufgabe4])),\"\",_xlfn.XLOOKUP($E7,Tabelle2[Rufname],Tabelle2[Aufgabe4]))","v":0},{"$f":"IF(ISNA(_xlfn.XLOOKUP($E7,Tabelle2[Rufname],Tabelle2[Aufgabe5])),\"\",_xlfn.XLOOKUP($E7,Tabelle2[Rufname],Tabelle2[Aufgabe5]))","v":0},{"$f":"IF(ISNA(_xlfn.XLOOKUP($E7,Tabelle2[Rufname],Tabelle2[Aufgabe6])),\"\",_xlfn.XLOOKUP($E7,Tabelle2[Rufname],Tabelle2[Aufgabe6]))","v":0},{"$f":"IF(ISNA(_xlfn.XLOOKUP($E7,Tabelle2[Rufname],Tabelle2[Aufgabe7])),\"\",_xlfn.XLOOKUP($E7,Tabelle2[Rufname],Tabelle2[Aufgabe7]))","v":0},{"$f":"IF(ISNA(_xlfn.XLOOKUP($E7,Tabelle2[Rufname],Tabelle2[Aufgabe8])),\"\",_xlfn.XLOOKUP($E7,Tabelle2[Rufname],Tabelle2[Aufgabe8]))","v":0},{"$f":"IF(ISNA(_xlfn.XLOOKUP($E7,Tabelle2[Rufname],Tabelle2[Aufgabe9])),\"\",_xlfn.XLOOKUP($E7,Tabelle2[Rufname],Tabelle2[Aufgabe9]))","v":0},{"$f":"IF(ISNA(_xlfn.XLOOKUP($E7,Tabelle2[Rufname],Tabelle2[Aufgabe10])),\"\",_xlfn.XLOOKUP($E7,Tabelle2[Rufname],Tabelle2[Aufgabe10]))","v":0},{"$f":"IF(ISNA(_xlfn.XLOOKUP($E7,Tabelle2[Rufname],Tabelle2[Aufgabe11])),\"\",_xlfn.XLOOKUP($E7,Tabelle2[Rufname],Tabelle2[Aufgabe11]))","v":0}]
[null,null,null,null,"E5",null,null,null,null,null,null,null,null,null,null,null,null,null,null,null,null,null,null,null,null,null,null,null,null,null,null,null,null,null,null,null,null,null,null,null,null,null,null,null,null,null,null,null,null,null,null,null,null,null,null,0,0,0,0,0,0,0,0,0,0,0,null,{"$f":"IF(ISNA(_xlfn.XLOOKUP($E8,Tabelle2[Rufname],Tabelle2[Aufgabe])),\"\",_xlfn.XLOOKUP($E8,Tabelle2[Rufname],Tabelle2[Aufgabe]))","v":0},{"$f":"IF(ISNA(_xlfn.XLOOKUP($E8,Tabelle2[Rufname],Tabelle2[Aufgabe2])),\"\",_xlfn.XLOOKUP($E8,Tabelle2[Rufname],Tabelle2[Aufgabe2]))","v":0},{"$f":"IF(ISNA(_xlfn.XLOOKUP($E8,Tabelle2[Rufname],Tabelle2[Aufgabe3])),\"\",_xlfn.XLOOKUP($E8,Tabelle2[Rufname],Tabelle2[Aufgabe3]))","v":0},{"$f":"IF(ISNA(_xlfn.XLOOKUP($E8,Tabelle2[Rufname],Tabelle2[Aufgabe4])),\"\",_xlfn.XLOOKUP($E8,Tabelle2[Rufname],Tabelle2[Aufgabe4]))","v":0},{"$f":"IF(ISNA(_xlfn.XLOOKUP($E8,Tabelle2[Rufname],Tabelle2[Aufgabe5])),\"\",_xlfn.XLOOKUP($E8,Tabelle2[Rufname],Tabelle2[Aufgabe5]))","v":0},{"$f":"IF(ISNA(_xlfn.XLOOKUP($E8,Tabelle2[Rufname],Tabelle2[Aufgabe6])),\"\",_xlfn.XLOOKUP($E8,Tabelle2[Rufname],Tabelle2[Aufgabe6]))","v":0},{"$f":"IF(ISNA(_xlfn.XLOOKUP($E8,Tabelle2[Rufname],Tabelle2[Aufgabe7])),\"\",_xlfn.XLOOKUP($E8,Tabelle2[Rufname],Tabelle2[Aufgabe7]))","v":0},{"$f":"IF(ISNA(_xlfn.XLOOKUP($E8,Tabelle2[Rufname],Tabelle2[Aufgabe8])),\"\",_xlfn.XLOOKUP($E8,Tabelle2[Rufname],Tabelle2[Aufgabe8]))","v":0},{"$f":"IF(ISNA(_xlfn.XLOOKUP($E8,Tabelle2[Rufname],Tabelle2[Aufgabe9])),\"\",_xlfn.XLOOKUP($E8,Tabelle2[Rufname],Tabelle2[Aufgabe9]))","v":0},{"$f":"IF(ISNA(_xlfn.XLOOKUP($E8,Tabelle2[Rufname],Tabelle2[Aufgabe10])),\"\",_xlfn.XLOOKUP($E8,Tabelle2[Rufname],Tabelle2[Aufgabe10]))","v":0},{"$f":"IF(ISNA(_xlfn.XLOOKUP($E8,Tabelle2[Rufname],Tabelle2[Aufgabe11])),\"\",_xlfn.XLOOKUP($E8,Tabelle2[Rufname],Tabelle2[Aufgabe11]))","v":0}]
[null,null,null,null,"F6",null,null,null,null,null,"Aufgabe7",null,null,null,null,null,null,null,null,null,null,null,null,null,null,null,null,null,null,null,null,null,null,null,null,null,null,null,null,null,null,null,null,null,null,null,null,null,null,null,null,null,null,null,null,0,0,0,0,0,0,1,0,0,0,0,null,{"$f":"IF(ISNA(_xlfn.XLOOKUP($E9,Tabelle2[Rufname],Tabelle2[Aufgabe])),\"\",_xlfn.XLOOKUP($E9,Tabelle2[Rufname],Tabelle2[Aufgabe]))","v":0},{"$f":"IF(ISNA(_xlfn.XLOOKUP($E9,Tabelle2[Rufname],Tabelle2[Aufgabe2])),\"\",_xlfn.XLOOKUP($E9,Tabelle2[Rufname],Tabelle2[Aufgabe2]))","v":0},{"$f":"IF(ISNA(_xlfn.XLOOKUP($E9,Tabelle2[Rufname],Tabelle2[Aufgabe3])),\"\",_xlfn.XLOOKUP($E9,Tabelle2[Rufname],Tabelle2[Aufgabe3]))","v":0},{"$f":"IF(ISNA(_xlfn.XLOOKUP($E9,Tabelle2[Rufname],Tabelle2[Aufgabe4])),\"\",_xlfn.XLOOKUP($E9,Tabelle2[Rufname],Tabelle2[Aufgabe4]))","v":0},{"$f":"IF(ISNA(_xlfn.XLOOKUP($E9,Tabelle2[Rufname],Tabelle2[Aufgabe5])),\"\",_xlfn.XLOOKUP($E9,Tabelle2[Rufname],Tabelle2[Aufgabe5]))","v":0},{"$f":"IF(ISNA(_xlfn.XLOOKUP($E9,Tabelle2[Rufname],Tabelle2[Aufgabe6])),\"\",_xlfn.XLOOKUP($E9,Tabelle2[Rufname],Tabelle2[Aufgabe6]))","v":0},{"$f":"IF(ISNA(_xlfn.XLOOKUP($E9,Tabelle2[Rufname],Tabelle2[Aufgabe7])),\"\",_xlfn.XLOOKUP($E9,Tabelle2[Rufname],Tabelle2[Aufgabe7]))","v":0},{"$f":"IF(ISNA(_xlfn.XLOOKUP($E9,Tabelle2[Rufname],Tabelle2[Aufgabe8])),\"\",_xlfn.XLOOKUP($E9,Tabelle2[Rufname],Tabelle2[Aufgabe8]))","v":0},{"$f":"IF(ISNA(_xlfn.XLOOKUP($E9,Tabelle2[Rufname],Tabelle2[Aufgabe9])),\"\",_xlfn.XLOOKUP($E9,Tabelle2[Rufname],Tabelle2[Aufgabe9]))","v":0},{"$f":"IF(ISNA(_xlfn.XLOOKUP($E9,Tabelle2[Rufname],Tabelle2[Aufgabe10])),\"\",_xlfn.XLOOKUP($E9,Tabelle2[Rufname],Tabelle2[Aufgabe10]))","v":0},{"$f":"IF(ISNA(_xlfn.XLOOKUP($E9,Tabelle2[Rufname],Tabelle2[Aufgabe11])),\"\",_xlfn.XLOOKUP($E9,Tabelle2[Rufname],Tabelle2[Aufgabe11]))","v":0}]
[null,null,null,null,"G7",null,null,null,null,null,null,null,null,null,null,null,null,null,null,null,null,null,null,null,null,null,null,null,null,null,null,null,null,null,null,null,null,null,null,null,null,null,null,null,null,null,null,null,null,null,null,null,null,null,null,0,0,0,0,0,0,0,0,0,0,0,null,{"$f":"IF(ISNA(_xlfn.XLOOKUP($E10,Tabelle2[Rufname],Tabelle2[Aufgabe])),\"\",_xlfn.XLOOKUP($E10,Tabelle2[Rufname],Tabelle2[Aufgabe]))","v":0},{"$f":"IF(ISNA(_xlfn.XLOOKUP($E10,Tabelle2[Rufname],Tabelle2[Aufgabe2])),\"\",_xlfn.XLOOKUP($E10,Tabelle2[Rufname],Tabelle2[Aufgabe2]))","v":0},{"$f":"IF(ISNA(_xlfn.XLOOKUP($E10,Tabelle2[Rufname],Tabelle2[Aufgabe3])),\"\",_xlfn.XLOOKUP($E10,Tabelle2[Rufname],Tabelle2[Aufgabe3]))","v":0},{"$f":"IF(ISNA(_xlfn.XLOOKUP($E10,Tabelle2[Rufname],Tabelle2[Aufgabe4])),\"\",_xlfn.XLOOKUP($E10,Tabelle2[Rufname],Tabelle2[Aufgabe4]))","v":0},{"$f":"IF(ISNA(_xlfn.XLOOKUP($E10,Tabelle2[Rufname],Tabelle2[Aufgabe5])),\"\",_xlfn.XLOOKUP($E10,Tabelle2[Rufname],Tabelle2[Aufgabe5]))","v":0},{"$f":"IF(ISNA(_xlfn.XLOOKUP($E10,Tabelle2[Rufname],Tabelle2[Aufgabe6])),\"\",_xlfn.XLOOKUP($E10,Tabelle2[Rufname],Tabelle2[Aufgabe6]))","v":0},{"$f":"IF(ISNA(_xlfn.XLOOKUP($E10,Tabelle2[Rufname],Tabelle2[Aufgabe7])),\"\",_xlfn.XLOOKUP($E10,Tabelle2[Rufname],Tabelle2[Aufgabe7]))","v":0},{"$f":"IF(ISNA(_xlfn.XLOOKUP($E10,Tabelle2[Rufname],Tabelle2[Aufgabe8])),\"\",_xlfn.XLOOKUP($E10,Tabelle2[Rufname],Tabelle2[Aufgabe8]))","v":0},{"$f":"IF(ISNA(_xlfn.XLOOKUP($E10,Tabelle2[Rufname],Tabelle2[Aufgabe9])),\"\",_xlfn.XLOOKUP($E10,Tabelle2[Rufname],Tabelle2[Aufgabe9]))","v":0},{"$f":"IF(ISNA(_xlfn.XLOOKUP($E10,Tabelle2[Rufname],Tabelle2[Aufgabe10])),\"\",_xlfn.XLOOKUP($E10,Tabelle2[Rufname],Tabelle2[Aufgabe10]))","v":0},{"$f":"IF(ISNA(_xlfn.XLOOKUP($E10,Tabelle2[Rufname],Tabelle2[Aufgabe11])),\"\",_xlfn.XLOOKUP($E10,Tabelle2[Rufname],Tabelle2[Aufgabe11]))","v":0}]
[null,null,null,null,"H8",null,null,null,null,null,null,null,null,null,null,null,null,null,null,null,null,null,null,null,null,null,null,null,null,null,null,null,null,null,null,null,null,null,null,null,null,null,null,null,null,null,null,null,null,null,null,null,null,null,null,0,0,0,0,0,0,0,0,0,0,0,null,{"$f":"IF(ISNA(_xlfn.XLOOKUP($E11,Tabelle2[Rufname],Tabelle2[Aufgabe])),\"\",_xlfn.XLOOKUP($E11,Tabelle2[Rufname],Tabelle2[Aufgabe]))","v":0},{"$f":"IF(ISNA(_xlfn.XLOOKUP($E11,Tabelle2[Rufname],Tabelle2[Aufgabe2])),\"\",_xlfn.XLOOKUP($E11,Tabelle2[Rufname],Tabelle2[Aufgabe2]))","v":0},{"$f":"IF(ISNA(_xlfn.XLOOKUP($E11,Tabelle2[Rufname],Tabelle2[Aufgabe3])),\"\",_xlfn.XLOOKUP($E11,Tabelle2[Rufname],Tabelle2[Aufgabe3]))","v":0},{"$f":"IF(ISNA(_xlfn.XLOOKUP($E11,Tabelle2[Rufname],Tabelle2[Aufgabe4])),\"\",_xlfn.XLOOKUP($E11,Tabelle2[Rufname],Tabelle2[Aufgabe4]))","v":0},{"$f":"IF(ISNA(_xlfn.XLOOKUP($E11,Tabelle2[Rufname],Tabelle2[Aufgabe5])),\"\",_xlfn.XLOOKUP($E11,Tabelle2[Rufname],Tabelle2[Aufgabe5]))","v":0},{"$f":"IF(ISNA(_xlfn.XLOOKUP($E11,Tabelle2[Rufname],Tabelle2[Aufgabe6])),\"\",_xlfn.XLOOKUP($E11,Tabelle2[Rufname],Tabelle2[Aufgabe6]))","v":0},{"$f":"IF(ISNA(_xlfn.XLOOKUP($E11,Tabelle2[Rufname],Tabelle2[Aufgabe7])),\"\",_xlfn.XLOOKUP($E11,Tabelle2[Rufname],Tabelle2[Aufgabe7]))","v":0},{"$f":"IF(ISNA(_xlfn.XLOOKUP($E11,Tabelle2[Rufname],Tabelle2[Aufgabe8])),\"\",_xlfn.XLOOKUP($E11,Tabelle2[Rufname],Tabelle2[Aufgabe8]))","v":0},{"$f":"IF(ISNA(_xlfn.XLOOKUP($E11,Tabelle2[Rufname],Tabelle2[Aufgabe9])),\"\",_xlfn.XLOOKUP($E11,Tabelle2[Rufname],Tabelle2[Aufgabe9]))","v":0},{"$f":"IF(ISNA(_xlfn.XLOOKUP($E11,Tabelle2[Rufname],Tabelle2[Aufgabe10])),\"\",_xlfn.XLOOKUP($E11,Tabelle2[Rufname],Tabelle2[Aufgabe10]))","v":0},{"$f":"IF(ISNA(_xlfn.XLOOKUP($E11,Tabelle2[Rufname],Tabelle2[Aufgabe11])),\"\",_xlfn.XLOOKUP($E11,Tabelle2[Rufname],Tabelle2[Aufgabe11]))","v":0}]
[null,null,null,null,"I9",null,null,null,"Aufgabe6",null,null,null,null,null,null,null,null,null,null,null,null,null,null,null,null,null,null,null,null,null,null,null,null,null,null,null,null,null,null,null,null,null,null,null,null,null,null,null,null,null,null,null,null,null,null,0,0,0,0,0,1,0,0,0,0,0,null,{"$f":"IF(ISNA(_xlfn.XLOOKUP($E12,Tabelle2[Rufname],Tabelle2[Aufgabe])),\"\",_xlfn.XLOOKUP($E12,Tabelle2[Rufname],Tabelle2[Aufgabe]))","v":0},{"$f":"IF(ISNA(_xlfn.XLOOKUP($E12,Tabelle2[Rufname],Tabelle2[Aufgabe2])),\"\",_xlfn.XLOOKUP($E12,Tabelle2[Rufname],Tabelle2[Aufgabe2]))","v":0},{"$f":"IF(ISNA(_xlfn.XLOOKUP($E12,Tabelle2[Rufname],Tabelle2[Aufgabe3])),\"\",_xlfn.XLOOKUP($E12,Tabelle2[Rufname],Tabelle2[Aufgabe3]))","v":0},{"$f":"IF(ISNA(_xlfn.XLOOKUP($E12,Tabelle2[Rufname],Tabelle2[Aufgabe4])),\"\",_xlfn.XLOOKUP($E12,Tabelle2[Rufname],Tabelle2[Aufgabe4]))","v":0},{"$f":"IF(ISNA(_xlfn.XLOOKUP($E12,Tabelle2[Rufname],Tabelle2[Aufgabe5])),\"\",_xlfn.XLOOKUP($E12,Tabelle2[Rufname],Tabelle2[Aufgabe5]))","v":0},{"$f":"IF(ISNA(_xlfn.XLOOKUP($E12,Tabelle2[Rufname],Tabelle2[Aufgabe6])),\"\",_xlfn.XLOOKUP($E12,Tabelle2[Rufname],Tabelle2[Aufgabe6]))","v":0},{"$f":"IF(ISNA(_xlfn.XLOOKUP($E12,Tabelle2[Rufname],Tabelle2[Aufgabe7])),\"\",_xlfn.XLOOKUP($E12,Tabelle2[Rufname],Tabelle2[Aufgabe7]))","v":0},{"$f":"IF(ISNA(_xlfn.XLOOKUP($E12,Tabelle2[Rufname],Tabelle2[Aufgabe8])),\"\",_xlfn.XLOOKUP($E12,Tabelle2[Rufname],Tabelle2[Aufgabe8]))","v":0},{"$f":"IF(ISNA(_xlfn.XLOOKUP($E12,Tabelle2[Rufname],Tabelle2[Aufgabe9])),\"\",_xlfn.XLOOKUP($E12,Tabelle2[Rufname],Tabelle2[Aufgabe9]))","v":0},{"$f":"IF(ISNA(_xlfn.XLOOKUP($E12,Tabelle2[Rufname],Tabelle2[Aufgabe10])),\"\",_xlfn.XLOOKUP($E12,Tabelle2[Rufname],Tabelle2[Aufgabe10]))","v":0},{"$f":"IF(ISNA(_xlfn.XLOOKUP($E12,Tabelle2[Rufname],Tabelle2[Aufgabe11])),\"\",_xlfn.XLOOKUP($E12,Tabelle2[Rufname],Tabelle2[Aufgabe11]))","v":0}]
[null,null,null,null,"J10",null,null,null,null,null,null,null,null,null,null,null,null,null,null,null,null,null,null,null,null,null,null,null,null,null,null,null,null,null,null,null,null,null,null,null,null,null,null,null,null,null,null,null,null,null,null,null,null,null,null,0,0,0,0,0,0,0,0,0,0,0,null,{"$f":"IF(ISNA(_xlfn.XLOOKUP($E13,Tabelle2[Rufname],Tabelle2[Aufgabe])),\"\",_xlfn.XLOOKUP($E13,Tabelle2[Rufname],Tabelle2[Aufgabe]))","v":0},{"$f":"IF(ISNA(_xlfn.XLOOKUP($E13,Tabelle2[Rufname],Tabelle2[Aufgabe2])),\"\",_xlfn.XLOOKUP($E13,Tabelle2[Rufname],Tabelle2[Aufgabe2]))","v":0},{"$f":"IF(ISNA(_xlfn.XLOOKUP($E13,Tabelle2[Rufname],Tabelle2[Aufgabe3])),\"\",_xlfn.XLOOKUP($E13,Tabelle2[Rufname],Tabelle2[Aufgabe3]))","v":0},{"$f":"IF(ISNA(_xlfn.XLOOKUP($E13,Tabelle2[Rufname],Tabelle2[Aufgabe4])),\"\",_xlfn.XLOOKUP($E13,Tabelle2[Rufname],Tabelle2[Aufgabe4]))","v":0},{"$f":"IF(ISNA(_xlfn.XLOOKUP($E13,Tabelle2[Rufname],Tabelle2[Aufgabe5])),\"\",_xlfn.XLOOKUP($E13,Tabelle2[Rufname],Tabelle2[Aufgabe5]))","v":0},{"$f":"IF(ISNA(_xlfn.XLOOKUP($E13,Tabelle2[Rufname],Tabelle2[Aufgabe6])),\"\",_xlfn.XLOOKUP($E13,Tabelle2[Rufname],Tabelle2[Aufgabe6]))","v":0},{"$f":"IF(ISNA(_xlfn.XLOOKUP($E13,Tabelle2[Rufname],Tabelle2[Aufgabe7])),\"\",_xlfn.XLOOKUP($E13,Tabelle2[Rufname],Tabelle2[Aufgabe7]))","v":0},{"$f":"IF(ISNA(_xlfn.XLOOKUP($E13,Tabelle2[Rufname],Tabelle2[Aufgabe8])),\"\",_xlfn.XLOOKUP($E13,Tabelle2[Rufname],Tabelle2[Aufgabe8]))","v":0},{"$f":"IF(ISNA(_xlfn.XLOOKUP($E13,Tabelle2[Rufname],Tabelle2[Aufgabe9])),\"\",_xlfn.XLOOKUP($E13,Tabelle2[Rufname],Tabelle2[Aufgabe9]))","v":0},{"$f":"IF(ISNA(_xlfn.XLOOKUP($E13,Tabelle2[Rufname],Tabelle2[Aufgabe10])),\"\",_xlfn.XLOOKUP($E13,Tabelle2[Rufname],Tabelle2[Aufgabe10]))","v":0},{"$f":"IF(ISNA(_xlfn.XLOOKUP($E13,Tabelle2[Rufname],Tabelle2[Aufgabe11])),\"\",_xlfn.XLOOKUP($E13,Tabelle2[Rufname],Tabelle2[Aufgabe11]))","v":0}]
[null,null,null,null,"K11",null,null,null,null,null,null,null,null,null,null,null,null,null,null,null,null,null,null,null,null,null,null,null,null,null,null,null,null,null,null,null,null,null,null,null,null,null,null,null,null,null,null,null,null,null,null,null,null,null,null,0,0,0,0,0,0,0,0,0,0,0,null,{"$f":"IF(ISNA(_xlfn.XLOOKUP($E14,Tabelle2[Rufname],Tabelle2[Aufgabe])),\"\",_xlfn.XLOOKUP($E14,Tabelle2[Rufname],Tabelle2[Aufgabe]))","v":0},{"$f":"IF(ISNA(_xlfn.XLOOKUP($E14,Tabelle2[Rufname],Tabelle2[Aufgabe2])),\"\",_xlfn.XLOOKUP($E14,Tabelle2[Rufname],Tabelle2[Aufgabe2]))","v":0},{"$f":"IF(ISNA(_xlfn.XLOOKUP($E14,Tabelle2[Rufname],Tabelle2[Aufgabe3])),\"\",_xlfn.XLOOKUP($E14,Tabelle2[Rufname],Tabelle2[Aufgabe3]))","v":0},{"$f":"IF(ISNA(_xlfn.XLOOKUP($E14,Tabelle2[Rufname],Tabelle2[Aufgabe4])),\"\",_xlfn.XLOOKUP($E14,Tabelle2[Rufname],Tabelle2[Aufgabe4]))","v":0},{"$f":"IF(ISNA(_xlfn.XLOOKUP($E14,Tabelle2[Rufname],Tabelle2[Aufgabe5])),\"\",_xlfn.XLOOKUP($E14,Tabelle2[Rufname],Tabelle2[Aufgabe5]))","v":0},{"$f":"IF(ISNA(_xlfn.XLOOKUP($E14,Tabelle2[Rufname],Tabelle2[Aufgabe6])),\"\",_xlfn.XLOOKUP($E14,Tabelle2[Rufname],Tabelle2[Aufgabe6]))","v":0},{"$f":"IF(ISNA(_xlfn.XLOOKUP($E14,Tabelle2[Rufname],Tabelle2[Aufgabe7])),\"\",_xlfn.XLOOKUP($E14,Tabelle2[Rufname],Tabelle2[Aufgabe7]))","v":0},{"$f":"IF(ISNA(_xlfn.XLOOKUP($E14,Tabelle2[Rufname],Tabelle2[Aufgabe8])),\"\",_xlfn.XLOOKUP($E14,Tabelle2[Rufname],Tabelle2[Aufgabe8]))","v":0},{"$f":"IF(ISNA(_xlfn.XLOOKUP($E14,Tabelle2[Rufname],Tabelle2[Aufgabe9])),\"\",_xlfn.XLOOKUP($E14,Tabelle2[Rufname],Tabelle2[Aufgabe9]))","v":0},{"$f":"IF(ISNA(_xlfn.XLOOKUP($E14,Tabelle2[Rufname],Tabelle2[Aufgabe10])),\"\",_xlfn.XLOOKUP($E14,Tabelle2[Rufname],Tabelle2[Aufgabe10]))","v":0},{"$f":"IF(ISNA(_xlfn.XLOOKUP($E14,Tabelle2[Rufname],Tabelle2[Aufgabe11])),\"\",_xlfn.XLOOKUP($E14,Tabelle2[Rufname],Tabelle2[Aufgabe11]))","v":0}]
[null,null,null,null,"L12",null,null,null,null,null,null,null,null,null,null,null,null,null,null,null,null,null,null,null,null,null,null,null,null,null,null,null,null,null,null,null,null,null,null,null,null,null,null,null,null,null,null,null,null,null,null,null,null,null,null,0,0,0,0,0,0,0,0,0,0,0,null,{"$f":"IF(ISNA(_xlfn.XLOOKUP($E15,Tabelle2[Rufname],Tabelle2[Aufgabe])),\"\",_xlfn.XLOOKUP($E15,Tabelle2[Rufname],Tabelle2[Aufgabe]))","v":0},{"$f":"IF(ISNA(_xlfn.XLOOKUP($E15,Tabelle2[Rufname],Tabelle2[Aufgabe2])),\"\",_xlfn.XLOOKUP($E15,Tabelle2[Rufname],Tabelle2[Aufgabe2]))","v":0},{"$f":"IF(ISNA(_xlfn.XLOOKUP($E15,Tabelle2[Rufname],Tabelle2[Aufgabe3])),\"\",_xlfn.XLOOKUP($E15,Tabelle2[Rufname],Tabelle2[Aufgabe3]))","v":0},{"$f":"IF(ISNA(_xlfn.XLOOKUP($E15,Tabelle2[Rufname],Tabelle2[Aufgabe4])),\"\",_xlfn.XLOOKUP($E15,Tabelle2[Rufname],Tabelle2[Aufgabe4]))","v":0},{"$f":"IF(ISNA(_xlfn.XLOOKUP($E15,Tabelle2[Rufname],Tabelle2[Aufgabe5])),\"\",_xlfn.XLOOKUP($E15,Tabelle2[Rufname],Tabelle2[Aufgabe5]))","v":0},{"$f":"IF(ISNA(_xlfn.XLOOKUP($E15,Tabelle2[Rufname],Tabelle2[Aufgabe6])),\"\",_xlfn.XLOOKUP($E15,Tabelle2[Rufname],Tabelle2[Aufgabe6]))","v":0},{"$f":"IF(ISNA(_xlfn.XLOOKUP($E15,Tabelle2[Rufname],Tabelle2[Aufgabe7])),\"\",_xlfn.XLOOKUP($E15,Tabelle2[Rufname],Tabelle2[Aufgabe7]))","v":0},{"$f":"IF(ISNA(_xlfn.XLOOKUP($E15,Tabelle2[Rufname],Tabelle2[Aufgabe8])),\"\",_xlfn.XLOOKUP($E15,Tabelle2[Rufname],Tabelle2[Aufgabe8]))","v":0},{"$f":"IF(ISNA(_xlfn.XLOOKUP($E15,Tabelle2[Rufname],Tabelle2[Aufgabe9])),\"\",_xlfn.XLOOKUP($E15,Tabelle2[Rufname],Tabelle2[Aufgabe9]))","v":0},{"$f":"IF(ISNA(_xlfn.XLOOKUP($E15,Tabelle2[Rufname],Tabelle2[Aufgabe10])),\"\",_xlfn.XLOOKUP($E15,Tabelle2[Rufname],Tabelle2[Aufgabe10]))","v":0},{"$f":"IF(ISNA(_xlfn.XLOOKUP($E15,Tabelle2[Rufname],Tabelle2[Aufgabe11])),\"\",_xlfn.XLOOKUP($E15,Tabelle2[Rufname],Tabelle2[Aufgabe11]))","v":0}]
[null,null,null,null,"M13",null,null,null,null,null,null,null,null,null,null,null,null,null,null,null,null,null,null,null,null,null,null,null,null,null,null,null,null,null,null,null,null,null,null,null,null,null,null,null,null,null,null,null,null,null,null,null,null,null,null,0,0,0,0,0,0,0,0,0,0,0,null,{"$f":"IF(ISNA(_xlfn.XLOOKUP($E16,Tabelle2[Rufname],Tabelle2[Aufgabe])),\"\",_xlfn.XLOOKUP($E16,Tabelle2[Rufname],Tabelle2[Aufgabe]))","v":0},{"$f":"IF(ISNA(_xlfn.XLOOKUP($E16,Tabelle2[Rufname],Tabelle2[Aufgabe2])),\"\",_xlfn.XLOOKUP($E16,Tabelle2[Rufname],Tabelle2[Aufgabe2]))","v":0},{"$f":"IF(ISNA(_xlfn.XLOOKUP($E16,Tabelle2[Rufname],Tabelle2[Aufgabe3])),\"\",_xlfn.XLOOKUP($E16,Tabelle2[Rufname],Tabelle2[Aufgabe3]))","v":0},{"$f":"IF(ISNA(_xlfn.XLOOKUP($E16,Tabelle2[Rufname],Tabelle2[Aufgabe4])),\"\",_xlfn.XLOOKUP($E16,Tabelle2[Rufname],Tabelle2[Aufgabe4]))","v":0},{"$f":"IF(ISNA(_xlfn.XLOOKUP($E16,Tabelle2[Rufname],Tabelle2[Aufgabe5])),\"\",_xlfn.XLOOKUP($E16,Tabelle2[Rufname],Tabelle2[Aufgabe5]))","v":0},{"$f":"IF(ISNA(_xlfn.XLOOKUP($E16,Tabelle2[Rufname],Tabelle2[Aufgabe6])),\"\",_xlfn.XLOOKUP($E16,Tabelle2[Rufname],Tabelle2[Aufgabe6]))","v":0},{"$f":"IF(ISNA(_xlfn.XLOOKUP($E16,Tabelle2[Rufname],Tabelle2[Aufgabe7])),\"\",_xlfn.XLOOKUP($E16,Tabelle2[Rufname],Tabelle2[Aufgabe7]))","v":0},{"$f":"IF(ISNA(_xlfn.XLOOKUP($E16,Tabelle2[Rufname],Tabelle2[Aufgabe8])),\"\",_xlfn.XLOOKUP($E16,Tabelle2[Rufname],Tabelle2[Aufgabe8]))","v":0},{"$f":"IF(ISNA(_xlfn.XLOOKUP($E16,Tabelle2[Rufname],Tabelle2[Aufgabe9])),\"\",_xlfn.XLOOKUP($E16,Tabelle2[Rufname],Tabelle2[Aufgabe9]))","v":0},{"$f":"IF(ISNA(_xlfn.XLOOKUP($E16,Tabelle2[Rufname],Tabelle2[Aufgabe10])),\"\",_xlfn.XLOOKUP($E16,Tabelle2[Rufname],Tabelle2[Aufgabe10]))","v":0},{"$f":"IF(ISNA(_xlfn.XLOOKUP($E16,Tabelle2[Rufname],Tabelle2[Aufgabe11])),\"\",_xlfn.XLOOKUP($E16,Tabelle2[Rufname],Tabelle2[Aufgabe11]))","v":0}]
[null,null,null,null,"N14",null,null,null,null,null,null,null,null,null,null,null,null,null,null,null,null,null,null,null,null,null,null,null,null,null,null,null,null,null,null,null,null,null,null,null,null,null,null,null,null,null,null,null,null,null,null,null,null,null,null,0,0,0,0,0,0,0,0,0,0,0,null,{"$f":"IF(ISNA(_xlfn.XLOOKUP($E17,Tabelle2[Rufname],Tabelle2[Aufgabe])),\"\",_xlfn.XLOOKUP($E17,Tabelle2[Rufname],Tabelle2[Aufgabe]))","v":0},{"$f":"IF(ISNA(_xlfn.XLOOKUP($E17,Tabelle2[Rufname],Tabelle2[Aufgabe2])),\"\",_xlfn.XLOOKUP($E17,Tabelle2[Rufname],Tabelle2[Aufgabe2]))","v":0},{"$f":"IF(ISNA(_xlfn.XLOOKUP($E17,Tabelle2[Rufname],Tabelle2[Aufgabe3])),\"\",_xlfn.XLOOKUP($E17,Tabelle2[Rufname],Tabelle2[Aufgabe3]))","v":0},{"$f":"IF(ISNA(_xlfn.XLOOKUP($E17,Tabelle2[Rufname],Tabelle2[Aufgabe4])),\"\",_xlfn.XLOOKUP($E17,Tabelle2[Rufname],Tabelle2[Aufgabe4]))","v":0},{"$f":"IF(ISNA(_xlfn.XLOOKUP($E17,Tabelle2[Rufname],Tabelle2[Aufgabe5])),\"\",_xlfn.XLOOKUP($E17,Tabelle2[Rufname],Tabelle2[Aufgabe5]))","v":0},{"$f":"IF(ISNA(_xlfn.XLOOKUP($E17,Tabelle2[Rufname],Tabelle2[Aufgabe6])),\"\",_xlfn.XLOOKUP($E17,Tabelle2[Rufname],Tabelle2[Aufgabe6]))","v":0},{"$f":"IF(ISNA(_xlfn.XLOOKUP($E17,Tabelle2[Rufname],Tabelle2[Aufgabe7])),\"\",_xlfn.XLOOKUP($E17,Tabelle2[Rufname],Tabelle2[Aufgabe7]))","v":0},{"$f":"IF(ISNA(_xlfn.XLOOKUP($E17,Tabelle2[Rufname],Tabelle2[Aufgabe8])),\"\",_xlfn.XLOOKUP($E17,Tabelle2[Rufname],Tabelle2[Aufgabe8]))","v":0},{"$f":"IF(ISNA(_xlfn.XLOOKUP($E17,Tabelle2[Rufname],Tabelle2[Aufgabe9])),\"\",_xlfn.XLOOKUP($E17,Tabelle2[Rufname],Tabelle2[Aufgabe9]))","v":0},{"$f":"IF(ISNA(_xlfn.XLOOKUP($E17,Tabelle2[Rufname],Tabelle2[Aufgabe10])),\"\",_xlfn.XLOOKUP($E17,Tabelle2[Rufname],Tabelle2[Aufgabe10]))","v":0},{"$f":"IF(ISNA(_xlfn.XLOOKUP($E17,Tabelle2[Rufname],Tabelle2[Aufgabe11])),\"\",_xlfn.XLOOKUP($E17,Tabelle2[Rufname],Tabelle2[Aufgabe11]))","v":0}]
[null,null,null,null,"O15",null,null,null,null,null,null,null,null,null,null,null,null,null,null,null,null,null,null,null,null,null,null,null,null,null,null,null,null,null,null,null,null,null,null,null,null,null,null,null,null,null,null,null,null,null,null,null,null,null,null,0,0,0,0,0,0,0,0,0,0,0,null,{"$f":"IF(ISNA(_xlfn.XLOOKUP($E18,Tabelle2[Rufname],Tabelle2[Aufgabe])),\"\",_xlfn.XLOOKUP($E18,Tabelle2[Rufname],Tabelle2[Aufgabe]))","v":0},{"$f":"IF(ISNA(_xlfn.XLOOKUP($E18,Tabelle2[Rufname],Tabelle2[Aufgabe2])),\"\",_xlfn.XLOOKUP($E18,Tabelle2[Rufname],Tabelle2[Aufgabe2]))","v":0},{"$f":"IF(ISNA(_xlfn.XLOOKUP($E18,Tabelle2[Rufname],Tabelle2[Aufgabe3])),\"\",_xlfn.XLOOKUP($E18,Tabelle2[Rufname],Tabelle2[Aufgabe3]))","v":0},{"$f":"IF(ISNA(_xlfn.XLOOKUP($E18,Tabelle2[Rufname],Tabelle2[Aufgabe4])),\"\",_xlfn.XLOOKUP($E18,Tabelle2[Rufname],Tabelle2[Aufgabe4]))","v":0},{"$f":"IF(ISNA(_xlfn.XLOOKUP($E18,Tabelle2[Rufname],Tabelle2[Aufgabe5])),\"\",_xlfn.XLOOKUP($E18,Tabelle2[Rufname],Tabelle2[Aufgabe5]))","v":0},{"$f":"IF(ISNA(_xlfn.XLOOKUP($E18,Tabelle2[Rufname],Tabelle2[Aufgabe6])),\"\",_xlfn.XLOOKUP($E18,Tabelle2[Rufname],Tabelle2[Aufgabe6]))","v":0},{"$f":"IF(ISNA(_xlfn.XLOOKUP($E18,Tabelle2[Rufname],Tabelle2[Aufgabe7])),\"\",_xlfn.XLOOKUP($E18,Tabelle2[Rufname],Tabelle2[Aufgabe7]))","v":0},{"$f":"IF(ISNA(_xlfn.XLOOKUP($E18,Tabelle2[Rufname],Tabelle2[Aufgabe8])),\"\",_xlfn.XLOOKUP($E18,Tabelle2[Rufname],Tabelle2[Aufgabe8]))","v":0},{"$f":"IF(ISNA(_xlfn.XLOOKUP($E18,Tabelle2[Rufname],Tabelle2[Aufgabe9])),\"\",_xlfn.XLOOKUP($E18,Tabelle2[Rufname],Tabelle2[Aufgabe9]))","v":0},{"$f":"IF(ISNA(_xlfn.XLOOKUP($E18,Tabelle2[Rufname],Tabelle2[Aufgabe10])),\"\",_xlfn.XLOOKUP($E18,Tabelle2[Rufname],Tabelle2[Aufgabe10]))","v":0},{"$f":"IF(ISNA(_xlfn.XLOOKUP($E18,Tabelle2[Rufname],Tabelle2[Aufgabe11])),\"\",_xlfn.XLOOKUP($E18,Tabelle2[Rufname],Tabelle2[Aufgabe11]))","v":0}]
[null,null,null,null,"P16",null,null,null,null,null,null,null,null,null,null,null,null,null,null,null,null,null,null,null,null,null,null,null,null,null,null,null,null,null,null,null,null,null,null,null,null,null,null,null,null,null,null,null,null,null,null,null,null,null,null,0,0,0,0,0,0,0,0,0,0,0,null,{"$f":"IF(ISNA(_xlfn.XLOOKUP($E19,Tabelle2[Rufname],Tabelle2[Aufgabe])),\"\",_xlfn.XLOOKUP($E19,Tabelle2[Rufname],Tabelle2[Aufgabe]))","v":0},{"$f":"IF(ISNA(_xlfn.XLOOKUP($E19,Tabelle2[Rufname],Tabelle2[Aufgabe2])),\"\",_xlfn.XLOOKUP($E19,Tabelle2[Rufname],Tabelle2[Aufgabe2]))","v":0},{"$f":"IF(ISNA(_xlfn.XLOOKUP($E19,Tabelle2[Rufname],Tabelle2[Aufgabe3])),\"\",_xlfn.XLOOKUP($E19,Tabelle2[Rufname],Tabelle2[Aufgabe3]))","v":0},{"$f":"IF(ISNA(_xlfn.XLOOKUP($E19,Tabelle2[Rufname],Tabelle2[Aufgabe4])),\"\",_xlfn.XLOOKUP($E19,Tabelle2[Rufname],Tabelle2[Aufgabe4]))","v":0},{"$f":"IF(ISNA(_xlfn.XLOOKUP($E19,Tabelle2[Rufname],Tabelle2[Aufgabe5])),\"\",_xlfn.XLOOKUP($E19,Tabelle2[Rufname],Tabelle2[Aufgabe5]))","v":0},{"$f":"IF(ISNA(_xlfn.XLOOKUP($E19,Tabelle2[Rufname],Tabelle2[Aufgabe6])),\"\",_xlfn.XLOOKUP($E19,Tabelle2[Rufname],Tabelle2[Aufgabe6]))","v":0},{"$f":"IF(ISNA(_xlfn.XLOOKUP($E19,Tabelle2[Rufname],Tabelle2[Aufgabe7])),\"\",_xlfn.XLOOKUP($E19,Tabelle2[Rufname],Tabelle2[Aufgabe7]))","v":0},{"$f":"IF(ISNA(_xlfn.XLOOKUP($E19,Tabelle2[Rufname],Tabelle2[Aufgabe8])),\"\",_xlfn.XLOOKUP($E19,Tabelle2[Rufname],Tabelle2[Aufgabe8]))","v":0},{"$f":"IF(ISNA(_xlfn.XLOOKUP($E19,Tabelle2[Rufname],Tabelle2[Aufgabe9])),\"\",_xlfn.XLOOKUP($E19,Tabelle2[Rufname],Tabelle2[Aufgabe9]))","v":0},{"$f":"IF(ISNA(_xlfn.XLOOKUP($E19,Tabelle2[Rufname],Tabelle2[Aufgabe10])),\"\",_xlfn.XLOOKUP($E19,Tabelle2[Rufname],Tabelle2[Aufgabe10]))","v":0},{"$f":"IF(ISNA(_xlfn.XLOOKUP($E19,Tabelle2[Rufname],Tabelle2[Aufgabe11])),\"\",_xlfn.XLOOKUP($E19,Tabelle2[Rufname],Tabelle2[Aufgabe11]))","v":0}]
[null,null,null,null,"Q17",null,null,null,null,null,null,null,null,null,null,null,null,null,null,null,null,null,null,null,null,null,null,null,null,null,null,null,null,null,null,null,null,null,null,null,null,null,null,null,null,null,null,null,null,null,null,null,null,null,null,0,0,0,0,0,0,0,0,0,0,0,null,{"$f":"IF(ISNA(_xlfn.XLOOKUP($E20,Tabelle2[Rufname],Tabelle2[Aufgabe])),\"\",_xlfn.XLOOKUP($E20,Tabelle2[Rufname],Tabelle2[Aufgabe]))","v":0},{"$f":"IF(ISNA(_xlfn.XLOOKUP($E20,Tabelle2[Rufname],Tabelle2[Aufgabe2])),\"\",_xlfn.XLOOKUP($E20,Tabelle2[Rufname],Tabelle2[Aufgabe2]))","v":0},{"$f":"IF(ISNA(_xlfn.XLOOKUP($E20,Tabelle2[Rufname],Tabelle2[Aufgabe3])),\"\",_xlfn.XLOOKUP($E20,Tabelle2[Rufname],Tabelle2[Aufgabe3]))","v":0},{"$f":"IF(ISNA(_xlfn.XLOOKUP($E20,Tabelle2[Rufname],Tabelle2[Aufgabe4])),\"\",_xlfn.XLOOKUP($E20,Tabelle2[Rufname],Tabelle2[Aufgabe4]))","v":0},{"$f":"IF(ISNA(_xlfn.XLOOKUP($E20,Tabelle2[Rufname],Tabelle2[Aufgabe5])),\"\",_xlfn.XLOOKUP($E20,Tabelle2[Rufname],Tabelle2[Aufgabe5]))","v":0},{"$f":"IF(ISNA(_xlfn.XLOOKUP($E20,Tabelle2[Rufname],Tabelle2[Aufgabe6])),\"\",_xlfn.XLOOKUP($E20,Tabelle2[Rufname],Tabelle2[Aufgabe6]))","v":0},{"$f":"IF(ISNA(_xlfn.XLOOKUP($E20,Tabelle2[Rufname],Tabelle2[Aufgabe7])),\"\",_xlfn.XLOOKUP($E20,Tabelle2[Rufname],Tabelle2[Aufgabe7]))","v":0},{"$f":"IF(ISNA(_xlfn.XLOOKUP($E20,Tabelle2[Rufname],Tabelle2[Aufgabe8])),\"\",_xlfn.XLOOKUP($E20,Tabelle2[Rufname],Tabelle2[Aufgabe8]))","v":0},{"$f":"IF(ISNA(_xlfn.XLOOKUP($E20,Tabelle2[Rufname],Tabelle2[Aufgabe9])),\"\",_xlfn.XLOOKUP($E20,Tabelle2[Rufname],Tabelle2[Aufgabe9]))","v":0},{"$f":"IF(ISNA(_xlfn.XLOOKUP($E20,Tabelle2[Rufname],Tabelle2[Aufgabe10])),\"\",_xlfn.XLOOKUP($E20,Tabelle2[Rufname],Tabelle2[Aufgabe10]))","v":0},{"$f":"IF(ISNA(_xlfn.XLOOKUP($E20,Tabelle2[Rufname],Tabelle2[Aufgabe11])),\"\",_xlfn.XLOOKUP($E20,Tabelle2[Rufname],Tabelle2[Aufgabe11]))","v":0}]
[null,null,null,null,"R18",null,null,null,null,null,null,null,null,null,null,null,null,null,null,null,null,null,null,null,null,null,null,null,null,null,null,null,null,null,null,null,null,null,null,null,null,null,null,null,null,null,null,null,null,null,null,null,null,null,null,0,0,0,0,0,0,0,0,0,0,0,null,{"$f":"IF(ISNA(_xlfn.XLOOKUP($E21,Tabelle2[Rufname],Tabelle2[Aufgabe])),\"\",_xlfn.XLOOKUP($E21,Tabelle2[Rufname],Tabelle2[Aufgabe]))","v":0},{"$f":"IF(ISNA(_xlfn.XLOOKUP($E21,Tabelle2[Rufname],Tabelle2[Aufgabe2])),\"\",_xlfn.XLOOKUP($E21,Tabelle2[Rufname],Tabelle2[Aufgabe2]))","v":0},{"$f":"IF(ISNA(_xlfn.XLOOKUP($E21,Tabelle2[Rufname],Tabelle2[Aufgabe3])),\"\",_xlfn.XLOOKUP($E21,Tabelle2[Rufname],Tabelle2[Aufgabe3]))","v":0},{"$f":"IF(ISNA(_xlfn.XLOOKUP($E21,Tabelle2[Rufname],Tabelle2[Aufgabe4])),\"\",_xlfn.XLOOKUP($E21,Tabelle2[Rufname],Tabelle2[Aufgabe4]))","v":0},{"$f":"IF(ISNA(_xlfn.XLOOKUP($E21,Tabelle2[Rufname],Tabelle2[Aufgabe5])),\"\",_xlfn.XLOOKUP($E21,Tabelle2[Rufname],Tabelle2[Aufgabe5]))","v":0},{"$f":"IF(ISNA(_xlfn.XLOOKUP($E21,Tabelle2[Rufname],Tabelle2[Aufgabe6])),\"\",_xlfn.XLOOKUP($E21,Tabelle2[Rufname],Tabelle2[Aufgabe6]))","v":0},{"$f":"IF(ISNA(_xlfn.XLOOKUP($E21,Tabelle2[Rufname],Tabelle2[Aufgabe7])),\"\",_xlfn.XLOOKUP($E21,Tabelle2[Rufname],Tabelle2[Aufgabe7]))","v":0},{"$f":"IF(ISNA(_xlfn.XLOOKUP($E21,Tabelle2[Rufname],Tabelle2[Aufgabe8])),\"\",_xlfn.XLOOKUP($E21,Tabelle2[Rufname],Tabelle2[Aufgabe8]))","v":0},{"$f":"IF(ISNA(_xlfn.XLOOKUP($E21,Tabelle2[Rufname],Tabelle2[Aufgabe9])),\"\",_xlfn.XLOOKUP($E21,Tabelle2[Rufname],Tabelle2[Aufgabe9]))","v":0},{"$f":"IF(ISNA(_xlfn.XLOOKUP($E21,Tabelle2[Rufname],Tabelle2[Aufgabe10])),\"\",_xlfn.XLOOKUP($E21,Tabelle2[Rufname],Tabelle2[Aufgabe10]))","v":0},{"$f":"IF(ISNA(_xlfn.XLOOKUP($E21,Tabelle2[Rufname],Tabelle2[Aufgabe11])),\"\",_xlfn.XLOOKUP($E21,Tabelle2[Rufname],Tabelle2[Aufgabe11]))","v":0}]
[null,null,null,null,"S19",null,null,null,null,null,null,null,null,null,null,null,null,null,null,null,null,null,null,null,null,null,null,null,null,null,null,null,null,null,null,null,null,null,null,null,null,null,null,null,null,null,null,null,null,null,null,null,null,null,null,0,0,0,0,0,0,0,0,0,0,0,null,{"$f":"IF(ISNA(_xlfn.XLOOKUP($E22,Tabelle2[Rufname],Tabelle2[Aufgabe])),\"\",_xlfn.XLOOKUP($E22,Tabelle2[Rufname],Tabelle2[Aufgabe]))","v":0},{"$f":"IF(ISNA(_xlfn.XLOOKUP($E22,Tabelle2[Rufname],Tabelle2[Aufgabe2])),\"\",_xlfn.XLOOKUP($E22,Tabelle2[Rufname],Tabelle2[Aufgabe2]))","v":0},{"$f":"IF(ISNA(_xlfn.XLOOKUP($E22,Tabelle2[Rufname],Tabelle2[Aufgabe3])),\"\",_xlfn.XLOOKUP($E22,Tabelle2[Rufname],Tabelle2[Aufgabe3]))","v":0},{"$f":"IF(ISNA(_xlfn.XLOOKUP($E22,Tabelle2[Rufname],Tabelle2[Aufgabe4])),\"\",_xlfn.XLOOKUP($E22,Tabelle2[Rufname],Tabelle2[Aufgabe4]))","v":0},{"$f":"IF(ISNA(_xlfn.XLOOKUP($E22,Tabelle2[Rufname],Tabelle2[Aufgabe5])),\"\",_xlfn.XLOOKUP($E22,Tabelle2[Rufname],Tabelle2[Aufgabe5]))","v":0},{"$f":"IF(ISNA(_xlfn.XLOOKUP($E22,Tabelle2[Rufname],Tabelle2[Aufgabe6])),\"\",_xlfn.XLOOKUP($E22,Tabelle2[Rufname],Tabelle2[Aufgabe6]))","v":0},{"$f":"IF(ISNA(_xlfn.XLOOKUP($E22,Tabelle2[Rufname],Tabelle2[Aufgabe7])),\"\",_xlfn.XLOOKUP($E22,Tabelle2[Rufname],Tabelle2[Aufgabe7]))","v":0},{"$f":"IF(ISNA(_xlfn.XLOOKUP($E22,Tabelle2[Rufname],Tabelle2[Aufgabe8])),\"\",_xlfn.XLOOKUP($E22,Tabelle2[Rufname],Tabelle2[Aufgabe8]))","v":0},{"$f":"IF(ISNA(_xlfn.XLOOKUP($E22,Tabelle2[Rufname],Tabelle2[Aufgabe9])),\"\",_xlfn.XLOOKUP($E22,Tabelle2[Rufname],Tabelle2[Aufgabe9]))","v":0},{"$f":"IF(ISNA(_xlfn.XLOOKUP($E22,Tabelle2[Rufname],Tabelle2[Aufgabe10])),\"\",_xlfn.XLOOKUP($E22,Tabelle2[Rufname],Tabelle2[Aufgabe10]))","v":0},{"$f":"IF(ISNA(_xlfn.XLOOKUP($E22,Tabelle2[Rufname],Tabelle2[Aufgabe11])),\"\",_xlfn.XLOOKUP($E22,Tabelle2[Rufname],Tabelle2[Aufgabe11]))","v":0}]
[null,null,null,null,"T20",null,null,null,null,null,null,null,null,null,null,null,null,null,null,null,null,null,null,null,null,null,null,null,null,null,null,null,null,null,null,null,null,null,null,null,null,null,null,null,null,null,null,null,null,null,null,null,null,null,null,0,0,0,0,0,0,0,0,0,0,0,null,{"$f":"IF(ISNA(_xlfn.XLOOKUP($E23,Tabelle2[Rufname],Tabelle2[Aufgabe])),\"\",_xlfn.XLOOKUP($E23,Tabelle2[Rufname],Tabelle2[Aufgabe]))","v":0},{"$f":"IF(ISNA(_xlfn.XLOOKUP($E23,Tabelle2[Rufname],Tabelle2[Aufgabe2])),\"\",_xlfn.XLOOKUP($E23,Tabelle2[Rufname],Tabelle2[Aufgabe2]))","v":0},{"$f":"IF(ISNA(_xlfn.XLOOKUP($E23,Tabelle2[Rufname],Tabelle2[Aufgabe3])),\"\",_xlfn.XLOOKUP($E23,Tabelle2[Rufname],Tabelle2[Aufgabe3]))","v":0},{"$f":"IF(ISNA(_xlfn.XLOOKUP($E23,Tabelle2[Rufname],Tabelle2[Aufgabe4])),\"\",_xlfn.XLOOKUP($E23,Tabelle2[Rufname],Tabelle2[Aufgabe4]))","v":0},{"$f":"IF(ISNA(_xlfn.XLOOKUP($E23,Tabelle2[Rufname],Tabelle2[Aufgabe5])),\"\",_xlfn.XLOOKUP($E23,Tabelle2[Rufname],Tabelle2[Aufgabe5]))","v":0},{"$f":"IF(ISNA(_xlfn.XLOOKUP($E23,Tabelle2[Rufname],Tabelle2[Aufgabe6])),\"\",_xlfn.XLOOKUP($E23,Tabelle2[Rufname],Tabelle2[Aufgabe6]))","v":0},{"$f":"IF(ISNA(_xlfn.XLOOKUP($E23,Tabelle2[Rufname],Tabelle2[Aufgabe7])),\"\",_xlfn.XLOOKUP($E23,Tabelle2[Rufname],Tabelle2[Aufgabe7]))","v":0},{"$f":"IF(ISNA(_xlfn.XLOOKUP($E23,Tabelle2[Rufname],Tabelle2[Aufgabe8])),\"\",_xlfn.XLOOKUP($E23,Tabelle2[Rufname],Tabelle2[Aufgabe8]))","v":0},{"$f":"IF(ISNA(_xlfn.XLOOKUP($E23,Tabelle2[Rufname],Tabelle2[Aufgabe9])),\"\",_xlfn.XLOOKUP($E23,Tabelle2[Rufname],Tabelle2[Aufgabe9]))","v":0},{"$f":"IF(ISNA(_xlfn.XLOOKUP($E23,Tabelle2[Rufname],Tabelle2[Aufgabe10])),\"\",_xlfn.XLOOKUP($E23,Tabelle2[Rufname],Tabelle2[Aufgabe10]))","v":0},{"$f":"IF(ISNA(_xlfn.XLOOKUP($E23,Tabelle2[Rufname],Tabelle2[Aufgabe11])),\"\",_xlfn.XLOOKUP($E23,Tabelle2[Rufname],Tabelle2[Aufgabe11]))","v":0}]
[null,null,null,null,"U21",null,null,null,null,null,null,null,null,null,null,null,null,null,null,null,null,null,null,null,null,null,null,null,null,null,null,null,null,null,null,null,null,null,null,null,null,null,null,null,null,null,null,null,null,null,null,null,null,null,null,0,0,0,0,0,0,0,0,0,0,0,null,{"$f":"IF(ISNA(_xlfn.XLOOKUP($E24,Tabelle2[Rufname],Tabelle2[Aufgabe])),\"\",_xlfn.XLOOKUP($E24,Tabelle2[Rufname],Tabelle2[Aufgabe]))","v":0},{"$f":"IF(ISNA(_xlfn.XLOOKUP($E24,Tabelle2[Rufname],Tabelle2[Aufgabe2])),\"\",_xlfn.XLOOKUP($E24,Tabelle2[Rufname],Tabelle2[Aufgabe2]))","v":0},{"$f":"IF(ISNA(_xlfn.XLOOKUP($E24,Tabelle2[Rufname],Tabelle2[Aufgabe3])),\"\",_xlfn.XLOOKUP($E24,Tabelle2[Rufname],Tabelle2[Aufgabe3]))","v":0},{"$f":"IF(ISNA(_xlfn.XLOOKUP($E24,Tabelle2[Rufname],Tabelle2[Aufgabe4])),\"\",_xlfn.XLOOKUP($E24,Tabelle2[Rufname],Tabelle2[Aufgabe4]))","v":0},{"$f":"IF(ISNA(_xlfn.XLOOKUP($E24,Tabelle2[Rufname],Tabelle2[Aufgabe5])),\"\",_xlfn.XLOOKUP($E24,Tabelle2[Rufname],Tabelle2[Aufgabe5]))","v":0},{"$f":"IF(ISNA(_xlfn.XLOOKUP($E24,Tabelle2[Rufname],Tabelle2[Aufgabe6])),\"\",_xlfn.XLOOKUP($E24,Tabelle2[Rufname],Tabelle2[Aufgabe6]))","v":0},{"$f":"IF(ISNA(_xlfn.XLOOKUP($E24,Tabelle2[Rufname],Tabelle2[Aufgabe7])),\"\",_xlfn.XLOOKUP($E24,Tabelle2[Rufname],Tabelle2[Aufgabe7]))","v":0},{"$f":"IF(ISNA(_xlfn.XLOOKUP($E24,Tabelle2[Rufname],Tabelle2[Aufgabe8])),\"\",_xlfn.XLOOKUP($E24,Tabelle2[Rufname],Tabelle2[Aufgabe8]))","v":0},{"$f":"IF(ISNA(_xlfn.XLOOKUP($E24,Tabelle2[Rufname],Tabelle2[Aufgabe9])),\"\",_xlfn.XLOOKUP($E24,Tabelle2[Rufname],Tabelle2[Aufgabe9]))","v":0},{"$f":"IF(ISNA(_xlfn.XLOOKUP($E24,Tabelle2[Rufname],Tabelle2[Aufgabe10])),\"\",_xlfn.XLOOKUP($E24,Tabelle2[Rufname],Tabelle2[Aufgabe10]))","v":0},{"$f":"IF(ISNA(_xlfn.XLOOKUP($E24,Tabelle2[Rufname],Tabelle2[Aufgabe11])),\"\",_xlfn.XLOOKUP($E24,Tabelle2[Rufname],Tabelle2[Aufgabe11]))","v":0}]
[null,null,null,null,"V22",null,null,null,null,null,null,null,null,null,null,null,null,null,null,null,null,null,null,null,null,null,null,null,null,null,null,null,null,null,null,null,null,null,null,null,null,null,null,null,null,null,null,null,null,null,null,null,null,null,null,0,0,0,0,0,0,0,0,0,0,0,null,{"$f":"IF(ISNA(_xlfn.XLOOKUP($E25,Tabelle2[Rufname],Tabelle2[Aufgabe])),\"\",_xlfn.XLOOKUP($E25,Tabelle2[Rufname],Tabelle2[Aufgabe]))","v":0},{"$f":"IF(ISNA(_xlfn.XLOOKUP($E25,Tabelle2[Rufname],Tabelle2[Aufgabe2])),\"\",_xlfn.XLOOKUP($E25,Tabelle2[Rufname],Tabelle2[Aufgabe2]))","v":0},{"$f":"IF(ISNA(_xlfn.XLOOKUP($E25,Tabelle2[Rufname],Tabelle2[Aufgabe3])),\"\",_xlfn.XLOOKUP($E25,Tabelle2[Rufname],Tabelle2[Aufgabe3]))","v":0},{"$f":"IF(ISNA(_xlfn.XLOOKUP($E25,Tabelle2[Rufname],Tabelle2[Aufgabe4])),\"\",_xlfn.XLOOKUP($E25,Tabelle2[Rufname],Tabelle2[Aufgabe4]))","v":0},{"$f":"IF(ISNA(_xlfn.XLOOKUP($E25,Tabelle2[Rufname],Tabelle2[Aufgabe5])),\"\",_xlfn.XLOOKUP($E25,Tabelle2[Rufname],Tabelle2[Aufgabe5]))","v":0},{"$f":"IF(ISNA(_xlfn.XLOOKUP($E25,Tabelle2[Rufname],Tabelle2[Aufgabe6])),\"\",_xlfn.XLOOKUP($E25,Tabelle2[Rufname],Tabelle2[Aufgabe6]))","v":0},{"$f":"IF(ISNA(_xlfn.XLOOKUP($E25,Tabelle2[Rufname],Tabelle2[Aufgabe7])),\"\",_xlfn.XLOOKUP($E25,Tabelle2[Rufname],Tabelle2[Aufgabe7]))","v":0},{"$f":"IF(ISNA(_xlfn.XLOOKUP($E25,Tabelle2[Rufname],Tabelle2[Aufgabe8])),\"\",_xlfn.XLOOKUP($E25,Tabelle2[Rufname],Tabelle2[Aufgabe8]))","v":0},{"$f":"IF(ISNA(_xlfn.XLOOKUP($E25,Tabelle2[Rufname],Tabelle2[Aufgabe9])),\"\",_xlfn.XLOOKUP($E25,Tabelle2[Rufname],Tabelle2[Aufgabe9]))","v":0},{"$f":"IF(ISNA(_xlfn.XLOOKUP($E25,Tabelle2[Rufname],Tabelle2[Aufgabe10])),\"\",_xlfn.XLOOKUP($E25,Tabelle2[Rufname],Tabelle2[Aufgabe10]))","v":0},{"$f":"IF(ISNA(_xlfn.XLOOKUP($E25,Tabelle2[Rufname],Tabelle2[Aufgabe11])),\"\",_xlfn.XLOOKUP($E25,Tabelle2[Rufname],Tabelle2[Aufgabe11]))","v":0}]
[null,null,null,null,"W23",null,null,null,null,null,null,null,null,null,null,null,null,null,null,null,null,null,null,null,null,null,null,null,null,null,null,null,null,null,null,null,null,null,null,null,null,null,null,null,null,null,null,null,null,null,null,null,null,null,null,0,0,0,0,0,0,0,0,0,0,0,null,{"$f":"IF(ISNA(_xlfn.XLOOKUP($E26,Tabelle2[Rufname],Tabelle2[Aufgabe])),\"\",_xlfn.XLOOKUP($E26,Tabelle2[Rufname],Tabelle2[Aufgabe]))","v":0},{"$f":"IF(ISNA(_xlfn.XLOOKUP($E26,Tabelle2[Rufname],Tabelle2[Aufgabe2])),\"\",_xlfn.XLOOKUP($E26,Tabelle2[Rufname],Tabelle2[Aufgabe2]))","v":0},{"$f":"IF(ISNA(_xlfn.XLOOKUP($E26,Tabelle2[Rufname],Tabelle2[Aufgabe3])),\"\",_xlfn.XLOOKUP($E26,Tabelle2[Rufname],Tabelle2[Aufgabe3]))","v":0},{"$f":"IF(ISNA(_xlfn.XLOOKUP($E26,Tabelle2[Rufname],Tabelle2[Aufgabe4])),\"\",_xlfn.XLOOKUP($E26,Tabelle2[Rufname],Tabelle2[Aufgabe4]))","v":0},{"$f":"IF(ISNA(_xlfn.XLOOKUP($E26,Tabelle2[Rufname],Tabelle2[Aufgabe5])),\"\",_xlfn.XLOOKUP($E26,Tabelle2[Rufname],Tabelle2[Aufgabe5]))","v":0},{"$f":"IF(ISNA(_xlfn.XLOOKUP($E26,Tabelle2[Rufname],Tabelle2[Aufgabe6])),\"\",_xlfn.XLOOKUP($E26,Tabelle2[Rufname],Tabelle2[Aufgabe6]))","v":0},{"$f":"IF(ISNA(_xlfn.XLOOKUP($E26,Tabelle2[Rufname],Tabelle2[Aufgabe7])),\"\",_xlfn.XLOOKUP($E26,Tabelle2[Rufname],Tabelle2[Aufgabe7]))","v":0},{"$f":"IF(ISNA(_xlfn.XLOOKUP($E26,Tabelle2[Rufname],Tabelle2[Aufgabe8])),\"\",_xlfn.XLOOKUP($E26,Tabelle2[Rufname],Tabelle2[Aufgabe8]))","v":0},{"$f":"IF(ISNA(_xlfn.XLOOKUP($E26,Tabelle2[Rufname],Tabelle2[Aufgabe9])),\"\",_xlfn.XLOOKUP($E26,Tabelle2[Rufname],Tabelle2[Aufgabe9]))","v":0},{"$f":"IF(ISNA(_xlfn.XLOOKUP($E26,Tabelle2[Rufname],Tabelle2[Aufgabe10])),\"\",_xlfn.XLOOKUP($E26,Tabelle2[Rufname],Tabelle2[Aufgabe10]))","v":0},{"$f":"IF(ISNA(_xlfn.XLOOKUP($E26,Tabelle2[Rufname],Tabelle2[Aufgabe11])),\"\",_xlfn.XLOOKUP($E26,Tabelle2[Rufname],Tabelle2[Aufgabe11]))","v":0}]
[null,null,null,null,"X24",null,null,null,null,null,null,null,null,null,null,null,null,null,null,null,null,null,null,null,null,null,null,null,null,null,null,null,null,null,null,null,null,null,null,null,null,null,null,null,null,null,null,null,null,null,null,null,null,null,null,0,0,0,0,0,0,0,0,0,0,0,null,{"$f":"IF(ISNA(_xlfn.XLOOKUP($E27,Tabelle2[Rufname],Tabelle2[Aufgabe])),\"\",_xlfn.XLOOKUP($E27,Tabelle2[Rufname],Tabelle2[Aufgabe]))","v":0},{"$f":"IF(ISNA(_xlfn.XLOOKUP($E27,Tabelle2[Rufname],Tabelle2[Aufgabe2])),\"\",_xlfn.XLOOKUP($E27,Tabelle2[Rufname],Tabelle2[Aufgabe2]))","v":0},{"$f":"IF(ISNA(_xlfn.XLOOKUP($E27,Tabelle2[Rufname],Tabelle2[Aufgabe3])),\"\",_xlfn.XLOOKUP($E27,Tabelle2[Rufname],Tabelle2[Aufgabe3]))","v":0},{"$f":"IF(ISNA(_xlfn.XLOOKUP($E27,Tabelle2[Rufname],Tabelle2[Aufgabe4])),\"\",_xlfn.XLOOKUP($E27,Tabelle2[Rufname],Tabelle2[Aufgabe4]))","v":0},{"$f":"IF(ISNA(_xlfn.XLOOKUP($E27,Tabelle2[Rufname],Tabelle2[Aufgabe5])),\"\",_xlfn.XLOOKUP($E27,Tabelle2[Rufname],Tabelle2[Aufgabe5]))","v":0},{"$f":"IF(ISNA(_xlfn.XLOOKUP($E27,Tabelle2[Rufname],Tabelle2[Aufgabe6])),\"\",_xlfn.XLOOKUP($E27,Tabelle2[Rufname],Tabelle2[Aufgabe6]))","v":0},{"$f":"IF(ISNA(_xlfn.XLOOKUP($E27,Tabelle2[Rufname],Tabelle2[Aufgabe7])),\"\",_xlfn.XLOOKUP($E27,Tabelle2[Rufname],Tabelle2[Aufgabe7]))","v":0},{"$f":"IF(ISNA(_xlfn.XLOOKUP($E27,Tabelle2[Rufname],Tabelle2[Aufgabe8])),\"\",_xlfn.XLOOKUP($E27,Tabelle2[Rufname],Tabelle2[Aufgabe8]))","v":0},{"$f":"IF(ISNA(_xlfn.XLOOKUP($E27,Tabelle2[Rufname],Tabelle2[Aufgabe9])),\"\",_xlfn.XLOOKUP($E27,Tabelle2[Rufname],Tabelle2[Aufgabe9]))","v":0},{"$f":"IF(ISNA(_xlfn.XLOOKUP($E27,Tabelle2[Rufname],Tabelle2[Aufgabe10])),\"\",_xlfn.XLOOKUP($E27,Tabelle2[Rufname],Tabelle2[Aufgabe10]))","v":0},{"$f":"IF(ISNA(_xlfn.XLOOKUP($E27,Tabelle2[Rufname],Tabelle2[Aufgabe11])),\"\",_xlfn.XLOOKUP($E27,Tabelle2[Rufname],Tabelle2[Aufgabe11]))","v":0}]
[null,null,null,null,"Y25",null,null,null,null,null,null,null,null,null,null,null,null,null,null,null,null,null,null,null,null,null,null,null,null,null,null,null,null,null,null,null,null,null,null,null,null,null,null,null,null,null,null,null,null,null,null,null,null,null,null,0,0,0,0,0,0,0,0,0,0,0,null,{"$f":"IF(ISNA(_xlfn.XLOOKUP($E28,Tabelle2[Rufname],Tabelle2[Aufgabe])),\"\",_xlfn.XLOOKUP($E28,Tabelle2[Rufname],Tabelle2[Aufgabe]))","v":0},{"$f":"IF(ISNA(_xlfn.XLOOKUP($E28,Tabelle2[Rufname],Tabelle2[Aufgabe2])),\"\",_xlfn.XLOOKUP($E28,Tabelle2[Rufname],Tabelle2[Aufgabe2]))","v":0},{"$f":"IF(ISNA(_xlfn.XLOOKUP($E28,Tabelle2[Rufname],Tabelle2[Aufgabe3])),\"\",_xlfn.XLOOKUP($E28,Tabelle2[Rufname],Tabelle2[Aufgabe3]))","v":0},{"$f":"IF(ISNA(_xlfn.XLOOKUP($E28,Tabelle2[Rufname],Tabelle2[Aufgabe4])),\"\",_xlfn.XLOOKUP($E28,Tabelle2[Rufname],Tabelle2[Aufgabe4]))","v":0},{"$f":"IF(ISNA(_xlfn.XLOOKUP($E28,Tabelle2[Rufname],Tabelle2[Aufgabe5])),\"\",_xlfn.XLOOKUP($E28,Tabelle2[Rufname],Tabelle2[Aufgabe5]))","v":0},{"$f":"IF(ISNA(_xlfn.XLOOKUP($E28,Tabelle2[Rufname],Tabelle2[Aufgabe6])),\"\",_xlfn.XLOOKUP($E28,Tabelle2[Rufname],Tabelle2[Aufgabe6]))","v":0},{"$f":"IF(ISNA(_xlfn.XLOOKUP($E28,Tabelle2[Rufname],Tabelle2[Aufgabe7])),\"\",_xlfn.XLOOKUP($E28,Tabelle2[Rufname],Tabelle2[Aufgabe7]))","v":0},{"$f":"IF(ISNA(_xlfn.XLOOKUP($E28,Tabelle2[Rufname],Tabelle2[Aufgabe8])),\"\",_xlfn.XLOOKUP($E28,Tabelle2[Rufname],Tabelle2[Aufgabe8]))","v":0},{"$f":"IF(ISNA(_xlfn.XLOOKUP($E28,Tabelle2[Rufname],Tabelle2[Aufgabe9])),\"\",_xlfn.XLOOKUP($E28,Tabelle2[Rufname],Tabelle2[Aufgabe9]))","v":0},{"$f":"IF(ISNA(_xlfn.XLOOKUP($E28,Tabelle2[Rufname],Tabelle2[Aufgabe10])),\"\",_xlfn.XLOOKUP($E28,Tabelle2[Rufname],Tabelle2[Aufgabe10]))","v":0},{"$f":"IF(ISNA(_xlfn.XLOOKUP($E28,Tabelle2[Rufname],Tabelle2[Aufgabe11])),\"\",_xlfn.XLOOKUP($E28,Tabelle2[Rufname],Tabelle2[Aufgabe11]))","v":0}]
[null,null,null,null,"",null,null,null,null,null,null,null,null,null,null,null,null,null,null,null,null,null,null,null,null,null,null,null,null,null,null,null,null,null,null,null,null,null,null,null,null,null,null,null,null,null,null,null,null,null,null,null,null,null,null,"","","","","","","","","","","",null,{"$f":"IF(ISNA(_xlfn.XLOOKUP($E29,Tabelle2[Rufname],Tabelle2[Aufgabe])),\"\",_xlfn.XLOOKUP($E29,Tabelle2[Rufname],Tabelle2[Aufgabe]))","v":""},{"$f":"IF(ISNA(_xlfn.XLOOKUP($E29,Tabelle2[Rufname],Tabelle2[Aufgabe2])),\"\",_xlfn.XLOOKUP($E29,Tabelle2[Rufname],Tabelle2[Aufgabe2]))","v":""},{"$f":"IF(ISNA(_xlfn.XLOOKUP($E29,Tabelle2[Rufname],Tabelle2[Aufgabe3])),\"\",_xlfn.XLOOKUP($E29,Tabelle2[Rufname],Tabelle2[Aufgabe3]))","v":""},{"$f":"IF(ISNA(_xlfn.XLOOKUP($E29,Tabelle2[Rufname],Tabelle2[Aufgabe4])),\"\",_xlfn.XLOOKUP($E29,Tabelle2[Rufname],Tabelle2[Aufgabe4]))","v":""},{"$f":"IF(ISNA(_xlfn.XLOOKUP($E29,Tabelle2[Rufname],Tabelle2[Aufgabe5])),\"\",_xlfn.XLOOKUP($E29,Tabelle2[Rufname],Tabelle2[Aufgabe5]))","v":""},{"$f":"IF(ISNA(_xlfn.XLOOKUP($E29,Tabelle2[Rufname],Tabelle2[Aufgabe6])),\"\",_xlfn.XLOOKUP($E29,Tabelle2[Rufname],Tabelle2[Aufgabe6]))","v":""},{"$f":"IF(ISNA(_xlfn.XLOOKUP($E29,Tabelle2[Rufname],Tabelle2[Aufgabe7])),\"\",_xlfn.XLOOKUP($E29,Tabelle2[Rufname],Tabelle2[Aufgabe7]))","v":""},{"$f":"IF(ISNA(_xlfn.XLOOKUP($E29,Tabelle2[Rufname],Tabelle2[Aufgabe8])),\"\",_xlfn.XLOOKUP($E29,Tabelle2[Rufname],Tabelle2[Aufgabe8]))","v":""},{"$f":"IF(ISNA(_xlfn.XLOOKUP($E29,Tabelle2[Rufname],Tabelle2[Aufgabe9])),\"\",_xlfn.XLOOKUP($E29,Tabelle2[Rufname],Tabelle2[Aufgabe9]))","v":""},{"$f":"IF(ISNA(_xlfn.XLOOKUP($E29,Tabelle2[Rufname],Tabelle2[Aufgabe10])),\"\",_xlfn.XLOOKUP($E29,Tabelle2[Rufname],Tabelle2[Aufgabe10]))","v":""},{"$f":"IF(ISNA(_xlfn.XLOOKUP($E29,Tabelle2[Rufname],Tabelle2[Aufgabe11])),\"\",_xlfn.XLOOKUP($E29,Tabelle2[Rufname],Tabelle2[Aufgabe11]))","v":""}]
[null,null,null,null,"",null,null,null,null,null,null,null,null,null,null,null,null,null,null,null,null,null,null,null,null,null,null,null,null,null,null,null,null,null,null,null,null,null,null,null,null,null,null,null,null,null,null,null,null,null,null,null,null,null,null,"","","","","","","","","","","",null,{"$f":"IF(ISNA(_xlfn.XLOOKUP($E30,Tabelle2[Rufname],Tabelle2[Aufgabe])),\"\",_xlfn.XLOOKUP($E30,Tabelle2[Rufname],Tabelle2[Aufgabe]))","v":""},{"$f":"IF(ISNA(_xlfn.XLOOKUP($E30,Tabelle2[Rufname],Tabelle2[Aufgabe2])),\"\",_xlfn.XLOOKUP($E30,Tabelle2[Rufname],Tabelle2[Aufgabe2]))","v":""},{"$f":"IF(ISNA(_xlfn.XLOOKUP($E30,Tabelle2[Rufname],Tabelle2[Aufgabe3])),\"\",_xlfn.XLOOKUP($E30,Tabelle2[Rufname],Tabelle2[Aufgabe3]))","v":""},{"$f":"IF(ISNA(_xlfn.XLOOKUP($E30,Tabelle2[Rufname],Tabelle2[Aufgabe4])),\"\",_xlfn.XLOOKUP($E30,Tabelle2[Rufname],Tabelle2[Aufgabe4]))","v":""},{"$f":"IF(ISNA(_xlfn.XLOOKUP($E30,Tabelle2[Rufname],Tabelle2[Aufgabe5])),\"\",_xlfn.XLOOKUP($E30,Tabelle2[Rufname],Tabelle2[Aufgabe5]))","v":""},{"$f":"IF(ISNA(_xlfn.XLOOKUP($E30,Tabelle2[Rufname],Tabelle2[Aufgabe6])),\"\",_xlfn.XLOOKUP($E30,Tabelle2[Rufname],Tabelle2[Aufgabe6]))","v":""},{"$f":"IF(ISNA(_xlfn.XLOOKUP($E30,Tabelle2[Rufname],Tabelle2[Aufgabe7])),\"\",_xlfn.XLOOKUP($E30,Tabelle2[Rufname],Tabelle2[Aufgabe7]))","v":""},{"$f":"IF(ISNA(_xlfn.XLOOKUP($E30,Tabelle2[Rufname],Tabelle2[Aufgabe8])),\"\",_xlfn.XLOOKUP($E30,Tabelle2[Rufname],Tabelle2[Aufgabe8]))","v":""},{"$f":"IF(ISNA(_xlfn.XLOOKUP($E30,Tabelle2[Rufname],Tabelle2[Aufgabe9])),\"\",_xlfn.XLOOKUP($E30,Tabelle2[Rufname],Tabelle2[Aufgabe9]))","v":""},{"$f":"IF(ISNA(_xlfn.XLOOKUP($E30,Tabelle2[Rufname],Tabelle2[Aufgabe10])),\"\",_xlfn.XLOOKUP($E30,Tabelle2[Rufname],Tabelle2[Aufgabe10]))","v":""},{"$f":"IF(ISNA(_xlfn.XLOOKUP($E30,Tabelle2[Rufname],Tabelle2[Aufgabe11])),\"\",_xlfn.XLOOKUP($E30,Tabelle2[Rufname],Tabelle2[Aufgabe11]))","v":""}]
[null,null,null,null,null,null,null,null,null,null,null,null,null,null,null,null,null,null,null,null,null,null,null,null,null,null,null,null,null,null,null,null,null,null,null,null,null,null,null,null,null,null,null,null,null,null,null,null,null,null,null,null,null,null,null,"","","","","","","","","","","",null,{"$f":"IF(ISNA(_xlfn.XLOOKUP($E31,Tabelle2[Rufname],Tabelle2[Aufgabe])),\"\",_xlfn.XLOOKUP($E31,Tabelle2[Rufname],Tabelle2[Aufgabe]))","v":""},{"$f":"IF(ISNA(_xlfn.XLOOKUP($E31,Tabelle2[Rufname],Tabelle2[Aufgabe2])),\"\",_xlfn.XLOOKUP($E31,Tabelle2[Rufname],Tabelle2[Aufgabe2]))","v":""},{"$f":"IF(ISNA(_xlfn.XLOOKUP($E31,Tabelle2[Rufname],Tabelle2[Aufgabe3])),\"\",_xlfn.XLOOKUP($E31,Tabelle2[Rufname],Tabelle2[Aufgabe3]))","v":""},{"$f":"IF(ISNA(_xlfn.XLOOKUP($E31,Tabelle2[Rufname],Tabelle2[Aufgabe4])),\"\",_xlfn.XLOOKUP($E31,Tabelle2[Rufname],Tabelle2[Aufgabe4]))","v":""},{"$f":"IF(ISNA(_xlfn.XLOOKUP($E31,Tabelle2[Rufname],Tabelle2[Aufgabe5])),\"\",_xlfn.XLOOKUP($E31,Tabelle2[Rufname],Tabelle2[Aufgabe5]))","v":""},{"$f":"IF(ISNA(_xlfn.XLOOKUP($E31,Tabelle2[Rufname],Tabelle2[Aufgabe6])),\"\",_xlfn.XLOOKUP($E31,Tabelle2[Rufname],Tabelle2[Aufgabe6]))","v":""},{"$f":"IF(ISNA(_xlfn.XLOOKUP($E31,Tabelle2[Rufname],Tabelle2[Aufgabe7])),\"\",_xlfn.XLOOKUP($E31,Tabelle2[Rufname],Tabelle2[Aufgabe7]))","v":""},{"$f":"IF(ISNA(_xlfn.XLOOKUP($E31,Tabelle2[Rufname],Tabelle2[Aufgabe8])),\"\",_xlfn.XLOOKUP($E31,Tabelle2[Rufname],Tabelle2[Aufgabe8]))","v":""},{"$f":"IF(ISNA(_xlfn.XLOOKUP($E31,Tabelle2[Rufname],Tabelle2[Aufgabe9])),\"\",_xlfn.XLOOKUP($E31,Tabelle2[Rufname],Tabelle2[Aufgabe9]))","v":""},{"$f":"IF(ISNA(_xlfn.XLOOKUP($E31,Tabelle2[Rufname],Tabelle2[Aufgabe10])),\"\",_xlfn.XLOOKUP($E31,Tabelle2[Rufname],Tabelle2[Aufgabe10]))","v":""},{"$f":"IF(ISNA(_xlfn.XLOOKUP($E31,Tabelle2[Rufname],Tabelle2[Aufgabe11])),\"\",_xlfn.XLOOKUP($E31,Tabelle2[Rufname],Tabelle2[Aufgabe11]))","v":""}]
[null,null,null,null,null,null,null,null,null,null,null,null,null,null,null,null,null,null,null,null,null,null,null,null,null,null,null,null,null,null,null,null,null,null,null,null,null,null,null,null,null,null,null,null,null,null,null,null,null,null,null,null,null,null,null,null,null,null,null,null,null,null,null,null,null,null,null,null,{"$f":"_xlfn.XLOOKUP(G32,Tabelle2[User1],Tabelle2[Aufgabe2])","v":0}]
[null,null,null,null,"Gesamt",null,{"$f":"TRANSPOSE(Tabelle2[[#Headers],[Aufgabe]:[Aufgabe11]])","v":"Aufgabe"},{"$f":"COUNTIF(G4:L31,G33)","v":0},"Anzahl MA",{"$f":"COUNT(G4:G31)","v":0},null,null,null,{"$f":"TRANSPOSE(Tabelle2[[#Headers],[Aufgabe]:[Aufgabe11]])","v":"Aufgabe"},{"$f":"COUNTIF(N4:S31,N33)","v":0},"Anzahl MA",{"$f":"COUNT(N4:N31)","v":0},null,null,null,{"$f":"TRANSPOSE(Tabelle2[[#Headers],[Aufgabe]:[Aufgabe11]])","v":"Aufgabe"},{"$f":"COUNTIF(U4:Z31,U33)","v":0},"Anzahl MA",{"$f":"COUNT(U4:U31)","v":0},null,null,null,{"$f":"TRANSPOSE(Tabelle2[[#Headers],[Aufgabe]:[Aufgabe11]])","v":"Aufgabe"},{"$f":"COUNTIF(AB4:AG31,AB33)","v":0},"Anzahl MA",{"$f":"COUNT(AB4:AB31)","v":0},null,null,null,{"$f":"TRANSPOSE(Tabelle2[[#Headers],[Aufgabe]:[Aufgabe11]])","v":"Aufgabe"},{"$f":"COUNTIF(AI4:AN31,AI33)","v":0},"Anzahl MA",{"$f":"COUNT(AI4:AI31)","v":0},null,null,null,{"$f":"TRANSPOSE(Tabelle2[[#Headers],[Aufgabe]:[Aufgabe11]])","v":"Aufgabe"},{"$f":"COUNTIF(AP4:AU31,AP33)","v":0},"Anzahl MA",{"$f":"COUNT(AP4:AP31)","v":0},null,null,null,{"$f":"TRANSPOSE(Tabelle2[[#Headers],[Aufgabe]:[Aufgabe11]])","v":"Aufgabe"},{"$f":"COUNTIF(AW4:BB31,AW33)","v":0},"Anzahl MA",{"$f":"COUNT(AW4:AW31)","v":0},null,null,null,{"$f":"SUM(BD4:BD31)","v":0},{"$f":"SUM(BE4:BE31)","v":1},{"$f":"SUM(BF4:BF31)","v":0},{"$f":"SUM(BG4:BG31)","v":0},{"$f":"SUM(BH4:BH31)","v":0},{"$f":"SUM(BI4:BI31)","v":1},{"$f":"SUM(BJ4:BJ31)","v":1},{"$f":"SUM(BK4:BK31)","v":0},{"$f":"SUM(BL4:BL31)","v":0},{"$f":"SUM(BM4:BM31)","v":0},{"$f":"SUM(BN4:BN31)","v":0},null,{"$f":"SUM(BP4:BP31)","v":0},{"$f":"SUM(BQ4:BQ31)","v":0},0,0,0,0,0,0,0,0,0]
[null,null,null,null,null,null,"Aufgabe2",{"$f":"COUNTIF(G4:L31,G34)","v":1},"Hinweise",null,null,null,null,"Aufgabe2",{"$f":"COUNTIF(N4:S31,N34)","v":0},"Hinweise",null,null,null,null,"Aufgabe2",{"$f":"COUNTIF(U4:Z31,U34)","v":0},"Hinweise",null,null,null,null,"Aufgabe2",{"$f":"COUNTIF(AB4:AG31,AB34)","v":0},"Hinweise",null,null,null,null,"Aufgabe2",{"$f":"COUNTIF(AI4:AN31,AI34)","v":0},"Hinweise",null,null,null,null,"Aufgabe2",{"$f":"COUNTIF(AP4:AU31,AP34)","v":0},"Hinweise",null,null,null,null,"Aufgabe2",{"$f":"COUNTIF(AW4:BB31,AW34)","v":0},"Hinweise",null,null,null,null,"Hinweise",null,null,null,null,null,null,null,null,null,null,null,"Hinweise"]
[null,null,null,null,null,null,"Aufgabe3",{"$f":"COUNTIF(G4:L31,G35)","v":0},null,null,null,null,null,"Aufgabe3",{"$f":"COUNTIF(N4:S31,N35)","v":0},null,null,null,null,null,"Aufgabe3",{"$f":"COUNTIF(U4:Z31,U35)","v":0},null,null,null,null,null,"Aufgabe3",{"$f":"COUNTIF(AB4:AG31,AB35)","v":0},null,null,null,null,null,"Aufgabe3",{"$f":"COUNTIF(AI4:AN31,AI35)","v":0},null,null,null,null,null,"Aufgabe3",{"$f":"COUNTIF(AP4:AU31,AP35)","v":0},null,null,null,null,null,"Aufgabe3",{"$f":"COUNTIF(AW4:BB31,AW35)","v":0}]
[null,null,null,null,null,null,"Aufgabe4",{"$f":"COUNTIF(G4:L31,G36)","v":0},null,null,null,null,null,"Aufgabe4",{"$f":"COUNTIF(N4:S31,N36)","v":0},null,null,null,null,null,"Aufgabe4",{"$f":"COUNTIF(U4:Z31,U36)","v":0},null,null,null,null,null,"Aufgabe4",{"$f":"COUNTIF(AB4:AG31,AB36)","v":0},null,null,null,null,null,"Aufgabe4",{"$f":"COUNTIF(AI4:AN31,AI36)","v":0},null,null,null,null,null,"Aufgabe4",{"$f":"COUNTIF(AP4:AU31,AP36)","v":0},null,null,null,null,null,"Aufgabe4",{"$f":"COUNTIF(AW4:BB31,AW36)","v":0}]
[null,null,null,null,null,null,"Aufgabe5",{"$f":"COUNTIF(G4:L31,G37)","v":0},null,null,null,null,null,"Aufgabe5",{"$f":"COUNTIF(N4:S31,N37)","v":0},null,null,null,null,null,"Aufgabe5",{"$f":"COUNTIF(U4:Z31,U37)","v":0},null,null,null,null,null,"Aufgabe5",{"$f":"COUNTIF(AB4:AG31,AB37)","v":0},null,null,null,null,null,"Aufgabe5",{"$f":"COUNTIF(AI4:AN31,AI37)","v":0},null,null,null,null,null,"Aufgabe5",{"$f":"COUNTIF(AP4:AU31,AP37)","v":0},null,null,null,null,null,"Aufgabe5",{"$f":"COUNTIF(AW4:BB31,AW37)","v":0}]
[null,null,null,null,null,null,"Aufgabe6",{"$f":"COUNTIF(G4:L31,G38)","v":1},null,null,null,null,null,"Aufgabe6",{"$f":"COUNTIF(N4:S31,N38)","v":0},null,null,null,null,null,"Aufgabe6",{"$f":"COUNTIF(U4:Z31,U38)","v":0},null,null,null,null,null,"Aufgabe6",{"$f":"COUNTIF(AB4:AG31,AB38)","v":0},null,null,null,null,null,"Aufgabe6",{"$f":"COUNTIF(AI4:AN31,AI38)","v":0},null,null,null,null,null,"Aufgabe6",{"$f":"COUNTIF(AP4:AU31,AP38)","v":0},null,null,null,null,null,"Aufgabe6",{"$f":"COUNTIF(AW4:BB31,AW38)","v":0}]
[null,null,null,null,null,null,"Aufgabe7",{"$f":"COUNTIF(G4:L31,G39)","v":1},null,null,null,null,null,"Aufgabe7",{"$f":"COUNTIF(N4:S31,N39)","v":0},null,null,null,null,null,"Aufgabe7",{"$f":"COUNTIF(U4:Z31,U39)","v":0},null,null,null,null,null,"Aufgabe7",{"$f":"COUNTIF(AB4:AG31,AB39)","v":0},null,null,null,null,null,"Aufgabe7",{"$f":"COUNTIF(AI4:AN31,AI39)","v":0},null,null,null,null,null,"Aufgabe7",{"$f":"COUNTIF(AP4:AU31,AP39)","v":0},null,null,null,null,null,"Aufgabe7",{"$f":"COUNTIF(AW4:BB31,AW39)","v":0}]
[null,null,null,null,null,null,"Aufgabe8",{"$f":"COUNTIF(G4:L31,G40)","v":0},null,null,null,null,null,"Aufgabe8",{"$f":"COUNTIF(N4:S31,N40)","v":0},null,null,null,null,null,"Aufgabe8",{"$f":"COUNTIF(U4:Z31,U40)","v":0},null,null,null,null,null,"Aufgabe8",{"$f":"COUNTIF(AB4:AG31,AB40)","v":0},null,null,null,null,null,"Aufgabe8",{"$f":"COUNTIF(AI4:AN31,AI40)","v":0},null,null,null,null,null,"Aufgabe8",{"$f":"COUNTIF(AP4:AU31,AP40)","v":0},null,null,null,null,null,"Aufgabe8",{"$f":"COUNTIF(AW4:BB31,AW40)","v":0}]
[null,null,null,null,null,null,"Aufgabe9",{"$f":"COUNTIF(G4:L31,G41)","v":0},null,null,null,null,null,"Aufgabe9",{"$f":"COUNTIF(N4:S31,N41)","v":0},null,null,null,null,null,"Aufgabe9",{"$f":"COUNTIF(U4:Z31,U41)","v":0},null,null,null,null,null,"Aufgabe9",{"$f":"COUNTIF(AB4:AG31,AB41)","v":0},null,null,null,null,null,"Aufgabe9",{"$f":"COUNTIF(AI4:AN31,AI41)","v":0},null,null,null,null,null,"Aufgabe9",{"$f":"COUNTIF(AP4:AU31,AP41)","v":0},null,null,null,null,null,"Aufgabe9",{"$f":"COUNTIF(AW4:BB31,AW41)","v":0}]
[null,null,null,null,null,null,"Aufgabe10",{"$f":"COUNTIF(G4:L31,G42)","v":0},null,null,null,null,null,"Aufgabe10",{"$f":"COUNTIF(N4:S31,N42)","v":0},null,null,null,null,null,"Aufgabe10",{"$f":"COUNTIF(U4:Z31,U42)","v":0},null,null,null,null,null,"Aufgabe10",{"$f":"COUNTIF(AB4:AG31,AB42)","v":0},null,null,null,null,null,"Aufgabe10",{"$f":"COUNTIF(AI4:AN31,AI42)","v":0},null,null,null,null,null,"Aufgabe10",{"$f":"COUNTIF(AP4:AU31,AP42)","v":0},null,null,null,null,null,"Aufgabe10",{"$f":"COUNTIF(AW4:BB31,AW42)","v":0}]
[null,null,null,null,null,null,"Aufgabe11",{"$f":"COUNTIF(G4:L31,G43)","v":0},null,null,null,null,null,"Aufgabe11",{"$f":"COUNTIF(N4:S31,N43)","v":0},null,null,null,null,null,"Aufgabe11",{"$f":"COUNTIF(U4:Z31,U43)","v":0},null,null,null,null,null,"Aufgabe11",{"$f":"COUNTIF(AB4:AG31,AB43)","v":0},null,null,null,null,null,"Aufgabe11",{"$f":"COUNTIF(AI4:AN31,AI43)","v":0},null,null,null,null,null,"Aufgabe11",{"$f":"COUNTIF(AP4:AU31,AP43)","v":0},null,null,null,null,null,"Aufgabe11",{"$f":"COUNTIF(AW4:BB31,AW43)","v":0}]